{"text_format":"1","workbook":"xlsx","n_sheets":3,"sheets":["Arc Worksheet","Drop Tables","Color List 2"],"not_rendered":{"charts":0,"images":1,"macros":1,"external_links":0,"defined_names":51,"comments":0,"pivot_tables":0},"unopened":[],"bounds":{"document_bytes":16777216,"sheet_cells":100000,"rows_first":2000,"rows_last":500,"rows_between":2000,"halvings":0,"cell_chars":16384,"cell_head_chars":4096},"cells_cut":0,"cells_raw":0,"read":"whole","date_system":"1900"}

{"sheet":"Arc Worksheet","index":0,"n_rows":90,"n_cols":22,"rows_kept":90,"cut":false,"hidden":false,"merged":[[87,3,87,15],[88,3,88,15],[26,18,26,21],[22,18,25,21],[37,3,38,6],[50,3,50,21],[54,3,54,21],[56,3,57,21],[60,3,60,20],[62,3,62,4],[63,3,63,18],[65,3,67,19],[82,3,82,15],[83,3,83,15],[84,3,84,15],[85,3,85,15],[86,3,86,15],[78,3,78,15],[77,3,77,21],[79,3,79,21],[80,3,80,21],[81,3,81,21],[68,3,68,15],[73,3,73,15],[76,3,76,15],[69,3,72,20],[74,3,75,20],[61,3,61,15],[64,3,64,15],[55,3,55,15],[58,3,58,15],[59,3,59,15],[51,3,51,15],[52,3,52,15],[53,3,53,15],[44,3,46,11],[44,13,46,21],[24,3,24,6],[24,8,24,11],[18,18,18,21],[24,13,24,16],[27,3,27,6],[25,3,25,6],[25,8,25,11],[25,13,25,16],[27,18,27,21],[22,3,22,6],[19,3,19,6],[22,8,22,11],[18,13,18,16],[19,19,19,21],[18,3,18,6],[21,8,21,11],[28,3,28,6],[41,3,41,6],[42,3,42,6],[30,8,30,11],[35,3,36,21],[38,8,38,11],[39,8,39,11],[30,13,30,16],[31,3,32,6],[31,8,32,11],[31,13,32,16],[39,3,39,6],[1,8,5,16],[6,3,8,21],[9,3,9,6],[9,8,9,11],[9,13,9,16],[9,18,9,21],[89,3,90,21],[12,8,12,11],[12,3,12,4],[19,13,19,16],[12,5,12,6],[12,18,12,21],[12,13,12,16],[15,10,16,15],[18,8,18,11],[19,8,19,11],[21,18,21,21],[21,3,21,6],[41,8,41,11],[42,8,42,11],[39,13,42,21],[30,3,30,6],[10,18,10,21],[11,8,11,11],[11,13,11,16],[11,18,11,21],[10,3,10,6],[10,8,10,11],[10,13,10,16],[11,5,11,6],[11,3,11,4]]}
[]
[null,null,null,null,null,null,null,null,"Vertical Surfaces"]
[]
[]
[]
[]
[null,null,null,"Project Information"]
[]
[]
[null,null,null,"Architect/Designer",null,null,null,null,"Project Name",null,null,null,null,"Email",null,null,null,null,"Phone"]
[]
[null,null,null,"Country",null,"State/Province",null,null,"Location Details",null,null,null,null,"Stone and Steel Representative",null,null,null,null,"Cloud for Sales ID #"]
[]
[]
[]
[null,null,null,null,null,null,null,null,null,null,"Surface Information"]
[]
[]
[null,null,null,"Quantity",null,null,null,null,"Material Type",null,null,null,null,"Material Brand",null,null,null,null,"Material Color"]
[]
[]
[null,null,null,"Finish",null,null,null,null,"Edge Detail",null,null,null,null,null,null,null,null,null,"Application Description"]
[null,null,null,null,null,null,null,null,null,null,null,null,null,null,null,null,null,null,"Please decribe where these surfaces will be located and what their purpose will be"]
[]
[null,null,null,"Size (Length)",null,null,null,null,"Size (Height)",null,null,null,null,"Size (Depth)"]
[]
[]
[null,null,null,"Drawing Requested?",null,null,null,null,null,null,null,null,null,null,null,null,null,null,"Notes"]
[]
[]
[null,null,null,"Approval Name",null,null,null,null,"Approvers Title",null,null,null,null,"Date (mm/dd/yyyy)"]
[]
[]
[]
[null,null,null,null,null,null,null,null,null,null,null,null,null,null,null,null,null,null,null,null,null,"V02.20.19-1"]
[null,null,null,"Internal Use Only"]
[]
[null,null,null,"Internal Stone and Steel Representative"]
[null,null,null,null,null,null,null,null,"Compliance Notes (If App)",null,null,null,null,"Additional Notes:"]
[]
[]
[null,null,null,"List Price Per Surface",null,null,null,null,"Quote Number"]
[]
[]
[null,null,null,"*Lead Time Starts upon Stone and Steel's receipt of order - Note: Changes to Drawings after sign-off may extend lead time",null,null,null,null,null,null,null,null,null,"**Any Corian products longer than 120 inches will need to be seamed on site, any Quartz products over 119 inches will need to be seamed on site. Quartz materials that are seamed will have a visible seam"]
[]
[]
[]
[]
[null,null,null,"Notes:"]
[null,null,null,"- This quote is applicable to the request that accompanied it. Any changes may result in price and lead time changes and requires a new quote. After order has been placed any changes may result in extension of the lead time and/or fees up to the full price of the product. "]
[null,null,null,"- Lead Time Starts upon receipt of order"]
[null,null,null,"- Pricing does not include freight or unloading to final destination unless otherwise noted."]
[null,null,null,"- Quote is valid for 90 days from issue date"]
[null,null,null,"- Any Corian sinks longer than 120 inches will need to be seamed on site, any Quartz sinks over 119 inches will need to be seamed on site. Quartz materials that are seamed will have a visible seam"]
[null,null,null,"- Customer is responsible for paying all applicable Sales Tax to appropriate entities"]
[null,null,null,"-Unless otherwise specified, exclusions to this quote include but are not limed to:  Fixtures, plumbing components and materials, electronics, AV equipment, interior partitions, casework/millwork, wall/floor coverings, mounting hardware and furniture."]
[]
[null,null,null,"Cancellation Policy:"]
[null,null,null,"In the event of an order cancellation the following items may apply:"]
[null,null,null,"-If the  order is cancelled more than 5 working days from order placement it will result in a minimum of a 25% fee, up to the full price of that product. "]
[null,null,null,"-If the order is 5 working days or less from scheduled shipment any cancelations result in the full price of the product. "]
[null,null,null,"Return Policy:"]
[null,null,null,"All products except for some accessories are custom built and not eligible for return.  Some accessories may be returned for partial credit."]
[null,null,null,"Installation/Field Measurements:"]
[null,null,null,"Stone and Steel requires all products to be installed by knowledgeable installers. Installation and/or field measurement is not included in this estimate, and is by others. Installation must be performed by qualified personnel and in accordance with installation instructions and generally accepted industry practices.  Incorrect or improper installation will void any product warranty. For sinks: Any Corian sinks longer than 120 inches will need to be seamed on site, any Quartz sinks over 119 inches will need to be seamed on site. Quartz materials that are seamed will have a visible seam. For custom sinks refer to signed drawings packet to see if seaming will be required.  We do not provide material/epoxy."]
[]
[]
[null,null,null,"Materials:"]
[null,null,null,"All products provided by Stone and Steel will have some inherent variation.  While Stone and Steel takes the utmost caution to match and orient these products in such a way that these imperfections add to the aesthetic value of the product, Stone and Steel will not be held responsible for this variation.\n\nNatural products such as wood veneers, marble, granite and similar materials have variation in coloration, grain, veins, and surface finish both between lots/slabs and even within the same lot/slab.  natural products similarly may have imperfections within a sheet/slab such as small cracks, pitting or other surface imperfections, and/or discoloration.  While Stone and Steel takes the utmost caution to match and orient these products in suck a way that these imperfections add to the aesthetic value of the product, Stone and Steel will not be held responsible for this variation"]
[]
[]
[]
[null,null,null,"Signed Document Submittal:"]
[null,null,null,"Stone and Steel requires a signed architectural worksheet or signed drawing (if applicable) to be able to place an order. If an order is placed without these documents submitted to Stone and Steel it will result in an order hold that will extend any previously agreed upon lead time commitments. Once the documents are received the order will be reinstated and an updated ship date will be provided."]
[]
[null,null,null,"Claim Process: "]
[null,null,null,"For all Stone and Steel items if you receive a damaged item or suspect damage (crate broken, etc.) please reference our procedure below. THE BOL MUST BE MARKED AS \"DAMAGED\" UPON RECEIPT IN ORDER TO BE ELIGIBLE FOR CREDIT/REPLACEMENT of product.  Send the below information to DesignTeam@stoneandsteel.com"]
[null,null,null,"Information to be provided:"]
[null,null,null,"1.    Recipient must keep all original packaging, including cartons and contents, until the claim resolution process is completed. It may be necessary to make the packaging / contents available for inspection by the carrier’s representative. Keep merchandise and all packaging materials. "]
[null,null,null,"NOTE: It is imperative that the receiver keep the merchandise segregated and available for inspection until the claim is settled. If the claim is for full replacement value, and the claim is successfully paid, the carrier has the right to the cargo and may elect to collect it for sale or salvage to recoup a portion of their costs. "]
[null,null,null,"2.    Explanation of what we are filing a claim for (i.e. damage, lost, shortage), against whom we should file, and the value of the claim being filed. For a  damage claim, provide as much detail as possible specifically describing the damage to the product."]
[null,null,null,"3.    Account Number"]
[null,null,null,"4.    Customer Name, Customer Contact Name, Customer Address, Customer Phone Number"]
[null,null,null,"5.    Signed copy of carrier bill of lading, or delivery receipt from recipient (copy should be signed by receiver noting that the cargo was short or damaged when delivered) and photos. "]
[null,null,null,"6.    Stone and Steel Delivery Number and/or Sales Order Number"]
[null,null,null,"7.    Copied of all documentation related to proof of claim value. This can be a copy of original invoice from vendor or supplier, copy of retail invoice or receipt, final confirmation screen if online order with proof of payment, itemized repair invoice or statement of non-repair, appraisals, expense statement, or any other applicable documentation."]
[null,null,null,"8.    Copy of any inspection form that may have been completed noting damage and cost of repair."]
[null,null,null,"9.    Copies of any photos showing damage. "]
[null,null,null,"If you have a shortage (missing soap dispenser, etc.) please contact Stone and Steel’s customer service. Please have ready your order number and the item name and quantity that you are missing. "]

{"sheet":"Drop Tables","index":1,"n_rows":412,"n_cols":21,"rows_kept":412,"cut":false,"hidden":true,"merged":[]}
["Yes/No1","Country","CA State List","US State List","Rep List","Model","Yes/No2","Material Name","Material Code","Trough Style","Station Quantity","Stone and Steel Reps.","Stone Type","Material","Edge Detail","Material","Material Color List","Color Category","Color Code","Color Group","Finish"]
["Yes","Canada","Alberta","Alabama","American Sales Co.","AD","Yes","Caeserstone","E0001","Continuous Trough",1,"EP&D","Solid_Surface","Corian","Beveled","Caeserstone","Alpine Mist","D",0,"A","Polished/Smooth"]
["No","United States","British Columbia","Alaska","Aspinall Associates","DSG","No","Corian","C0002","Individual Basin",2,"BBN","Quartz","LG","Straight","Caeserstone","Atlantic Salt","B",0,"B","Matte/Leather"]
["N/A","Other","Manitoba","Arkansas","Badgerland Trading","DSCT","Yes","Corian_Quartz","S0003",null,3,"Braley Gray","Plastic_Laminate","Other","Rounded","Caeserstone","Bianco Drift","D",0,"C"]
[null,null,"New Brunswick","Arizona","BBN Sales","DSOF","No","Silestone","Z0004","Individual Basin",4,"Delco","Natural_Stone","Corian_Quartz",null,"Caeserstone","Blizzard","A","0108095","D"]
[null,null,"Newfoundland & Labrador","California","Braley Gray","DSVR",null,"Other","O0005",null,5,"Dillard","Exotic","Silestone",null,"Caeserstone","Calacatta Nuovo","E",0,"E"]
[null,null,"Northwest Territories","Colorado","Burns Cope","DSWD",{"$f":"IF(OR('Arc Worksheet'!#REF!='Drop Tables'!F2,'Arc Worksheet'!#REF!='Drop Tables'!F3),\"AD\",#N/A)","v":{"$error":"#REF!"}},null,null,null,"6+","Diversified","Other","Caeserstone",null,"Caeserstone","Clamshell","B",0,{"$error":"#N/A"}]
[null,null,"Nova Scotia","Connecticut","C.A. Riner",null,{"$f":"IF(OR('Arc Worksheet'!#REF!='Drop Tables'!F6,'Arc Worksheet'!#REF!='Drop Tables'!F5,'Arc Worksheet'!#REF!='Drop Tables'!F4),\"Basin\",\"Trough\")","v":{"$error":"#REF!"}},null,null,null,null,"Dobbin",null,"Cambria",null,"Caeserstone","Coastal Grey","D",0]
[null,null,"Nunavut","Delaware","Clapper Co.",null,{"$f":"IF('Arc Worksheet'!N26='Drop Tables'!L4,\"Laminate\",\"#N/A\")","v":"#N/A"},null,null,null,null,"Engineered Concepts",null,"Geolux",null,"Caeserstone","Concrete","A","0108099"]
[null,null,"Ontario","Florida","Delco Sales",null,"Yes",null,null,null,null,"Joyce",null,"Lapitec",null,"Caeserstone","Cosmopolitan White","D",0]
[null,null,"Prince Edward Island","Georgia","Dillard Associates - SA",null,"No",null,null,null,null,"Kliman",null,"Aurea Stone",null,"Caeserstone","Dreamy Marfil","D",0]
[null,null,"Quebec","Hawaii","Dillard Associates",null,"Yes",null,null,null,null,"Maloney & Curcio",null,"Wilsonart",null,"Caeserstone","Eggshell","A",0]
[null,null,"Saskatchewan","Idaho","Diversified Spec.",null,"No",null,null,null,null,"Pannell",null,"Other",null,"Caeserstone","Fresh Concrete","D",0]
[null,null,"Yukon","Illinois","Edwards, Platt, & Deely",null,null,null,null,null,null,"RBA",null,"Egger",null,"Caeserstone","Frosty Carrina","D",0]
[null,null,null,"Indiana","Engineered Concepts",null,{"$f":"IF('Arc Worksheet'!#REF!=\"DSWD\",\"Basin\",\"No\")","v":{"$error":"#REF!"}},null,null,null,null,"RE Fitzpatrick",null,"Formica",null,"Caeserstone","Geogian Bluffs","D",0]
[null,null,null,"Iowa","Hamel Associates",null,"Yes",null,null,null,null,"Repco",null,"Nevamar",null,"Caeserstone","Ginger","A",0]
[null,null,null,"Kansas","Hebco",null,"No",null,null,null,null,"SDAJ",null,"Octolam",null,"Caeserstone","Haze","B",0]
[null,null,null,"Kentucky","J.B. O'Connor Co. Inc.",null,null,null,null,null,null,"Smith & Stevenson",null,"Wilsonart",null,"Caeserstone","Jet Black","B",0]
[null,null,null,"Louisiana","J.H. Pokorny Associates",null,null,null,null,null,null,"Tri-Rep",null,"Other",null,"Caeserstone","Lagos Blue","B",0]
[null,null,null,"Maine","Joyce Agency",null,null,null,null,null,null,"WG Lesemann",null,"Granite",null,"Caeserstone","Linen","B",0]
[null,null,null,"Maryland","Kliman Sales Inc.",null,null,null,null,null,null,null,null,"Marble",null,"Caeserstone","London Grey","D",0]
[null,null,null,"Massachusetts","M & M Sales Inc.",null,null,null,null,null,null,null,null,"Quartzite",null,"Caeserstone","Montblanc","D",0]
[null,null,null,"Michigan","Maloney & Curcio",null,null,null,null,null,null,null,null,"Sandstone",null,"Caeserstone","Moorland Fog","B",0]
[null,null,null,"Minnesota","Marshall-Rodeno",null,null,null,null,null,null,null,null,"Travertine",null,"Caeserstone","Nobel Grey","D",0]
[null,null,null,"Mississippi","Mendell Sales",null,null,null,null,null,null,null,null,"Other",null,"Caeserstone","Nougat","A",0]
[null,null,null,"Missouri","Midwest Spec.",null,null,null,null,null,null,null,null,"Dekton",null,"Caeserstone","Ocean Foam","B",0]
[null,null,null,"Montana","Pannell",null,null,null,null,null,null,null,null,"Neolith",null,"Caeserstone","Organic White","B",0]
[null,null,null,"Nebraska","Premier Marketing",null,null,null,null,null,null,null,null,"Other",null,"Caeserstone","Pebble","B",0]
[null,null,null,"Nevada","R.E. Fitzpatrick",null,null,null,null,null,null,null,null,"Other Material",null,"Caeserstone","Piatra Grey","D",0]
[null,null,null,"New Hampshire","Repco",null,null,null,null,null,null,null,null,null,null,"Caeserstone","Pure White","D",0]
[null,null,null,"New Jersey","Service Reps Inc.",null,null,null,null,null,null,null,null,null,null,"Caeserstone","Quartz Reflections","B",0]
[null,null,null,"New Mexico","Service Reps Inc. - IA",null,null,null,null,null,null,null,null,null,null,"Caeserstone","Raven","B",0]
[null,null,null,"New York","Smith & Stevenson",null,null,null,null,null,null,null,null,null,null,"Caeserstone","Raw Concrete","D",0]
[null,null,null,"North Carolina","Southern Spec",null,null,null,null,null,null,null,null,null,null,"Caeserstone","Rugged Concrete","D",0]
[null,null,null,"North Dakota","Southwestern Mech - AZ",null,null,null,null,null,null,null,null,null,null,"Caeserstone","Shitake","B",0]
[null,null,null,"Ohio","Southwestern Mech - NV",null,null,null,null,null,null,null,null,null,null,"Caeserstone","Sleek Concrete","B",0]
[null,null,null,"Oklahoma","Stone, Drew, Ashe, Jones",null,null,null,null,null,null,null,null,null,null,"Caeserstone","Statuario Maximus","E",0]
[null,null,null,"Oregon","Stone, Drew, Ashe, Jones - AK",null,null,null,null,null,null,null,null,null,null,"Caeserstone","Statuario Nuovo","E",0]
[null,null,null,"Pennsylvania","Superior Products",null,null,null,null,null,null,null,null,null,null,"Caeserstone","Sympony Grey","D",0]
[null,null,null,"Rhode Island","Tri-Rep Sales",null,null,null,null,null,null,null,null,null,null,"Caeserstone","Taj Royal","D",0]
[null,null,null,"South Carolina","W.G. Lesemann & Son",null,null,null,null,null,null,null,null,null,null,"Caeserstone","Turbine Grey","B",0]
[null,null,null,"South Dakota","Will & Pierce Agency",null,null,null,null,null,null,null,null,null,null,"Caeserstone","Tuscan Dawn","D",0]
[null,null,null,"Tennessee","WMS Sales Inc.",null,null,null,null,null,null,null,null,null,null,"Caeserstone","Urban Safari","D",0]
[null,null,null,"Texas","Yost Associates",null,null,null,null,null,null,null,null,null,null,"Caeserstone","Villa Noir","D",0]
[null,null,null,"Utah","Ziel-Carlson Inc.",null,null,null,null,null,null,null,null,null,null,"Caeserstone","White Attica","D",0]
[null,null,null,"Vermont","R.G. Dobbin",null,null,null,null,null,null,null,null,null,null,"Caeserstone","Wild Rice","B",0]
[null,null,null,"Virginia",null,null,null,null,null,null,null,null,null,null,null,"Caeserstone","Woodlands","D",0]
[null,null,null,"Washington",null,null,null,null,null,null,null,null,null,null,null,"Corian","Abalone","A","0000001"]
[null,null,null,"West Virginia",null,null,null,null,null,null,null,null,null,null,null,"Corian","Allspice","D","=J2+1"]
[null,null,null,"Wisconsin",null,null,null,null,null,null,null,null,null,null,null,"Corian","Antarctica","B","0108003"]
[null,null,null,"Wyoming",null,null,null,null,null,null,null,null,null,null,null,"Corian","Anthracite","C","0108035"]
[null,null,null,null,null,null,null,null,null,null,null,null,null,null,null,"Corian","Aqualite","D",0]
[null,null,null,null,null,null,null,null,null,null,null,null,null,null,null,"Corian","Arctic Ice","C","0108028"]
[null,null,null,null,null,null,null,null,null,null,null,null,null,null,null,"Corian","Arrowroot","D","0108034"]
[null,null,null,null,null,null,null,null,null,null,null,null,null,null,null,"Corian","Ash Concrete","C",0]
[null,null,null,null,null,null,null,null,null,null,null,null,null,null,null,"Corian","Basil","D",0]
[null,null,null,null,null,null,null,null,null,null,null,null,null,null,null,"Corian","Bisque","A","0108042"]
[null,null,null,null,null,null,null,null,null,null,null,null,null,null,null,"Corian","Blue Pebble","B","0108016"]
[null,null,null,null,null,null,null,null,null,null,null,null,null,null,null,"Corian","Blue Spice","C",0]
[null,null,null,null,null,null,null,null,null,null,null,null,null,null,null,"Corian","Bone","A",0]
[null,null,null,null,null,null,null,null,null,null,null,null,null,null,null,"Corian","Bronzite","C",0]
[null,null,null,null,null,null,null,null,null,null,null,null,null,null,null,"Corian","Burled Birch","D",0]
[null,null,null,null,null,null,null,null,null,null,null,null,null,null,null,"Corian","Cameo White","A","0108004"]
[null,null,null,null,null,null,null,null,null,null,null,null,null,null,null,"Corian","Canvas","C","0108009"]
[null,null,null,null,null,null,null,null,null,null,null,null,null,null,null,"Corian","Canyon","B",0]
[null,null,null,null,null,null,null,null,null,null,null,null,null,null,null,"Corian","Carbon Concrete","C",0]
[null,null,null,null,null,null,null,null,null,null,null,null,null,null,null,"Corian","Cilantro","C",0]
[null,null,null,null,null,null,null,null,null,null,null,null,null,null,null,"Corian","Clam Shell","D",0]
[null,null,null,null,null,null,null,null,null,null,null,null,null,null,null,"Corian","Cobalt","C",0]
[null,null,null,null,null,null,null,null,null,null,null,null,null,null,null,"Corian","Cocoa Brown","B","0108047"]
[null,null,null,null,null,null,null,null,null,null,null,null,null,null,null,"Corian","Cocoa Prima","D",0]
[null,null,null,null,null,null,null,null,null,null,null,null,null,null,null,"Corian","Concrete","C","0108013"]
[null,null,null,null,null,null,null,null,null,null,null,null,null,null,null,"Corian","Cosmos Prima","D",0]
[null,null,null,null,null,null,null,null,null,null,null,null,null,null,null,"Corian","Cottage Lane","C",0]
[null,null,null,null,null,null,null,null,null,null,null,null,null,null,null,"Corian","Deep Anthracite","C",0]
[null,null,null,null,null,null,null,null,null,null,null,null,null,null,null,"Corian","Deep Bedrock","C",0]
[null,null,null,null,null,null,null,null,null,null,null,null,null,null,null,"Corian","Deep Black Quartz","C",0]
[null,null,null,null,null,null,null,null,null,null,null,null,null,null,null,"Corian","Deep Caviar","C",0]
[null,null,null,null,null,null,null,null,null,null,null,null,null,null,null,"Corian","Deep Cloud","C","0108037"]
[null,null,null,null,null,null,null,null,null,null,null,null,null,null,null,"Corian","Deep Espresso","C",0]
[null,null,null,null,null,null,null,null,null,null,null,null,null,null,null,"Corian","Deep Inkwell","D",0]
[null,null,null,null,null,null,null,null,null,null,null,null,null,null,null,"Corian","Deep Lapis","D",0]
[null,null,null,null,null,null,null,null,null,null,null,null,null,null,null,"Corian","Deep Mink","C","0108053"]
[null,null,null,null,null,null,null,null,null,null,null,null,null,null,null,"Corian","Deep Night Sky","C","0108018"]
[null,null,null,null,null,null,null,null,null,null,null,null,null,null,null,"Corian","Deep Nocturne","C","0108061"]
[null,null,null,null,null,null,null,null,null,null,null,null,null,null,null,"Corian","Deep Sable","C","0108065"]
[null,null,null,null,null,null,null,null,null,null,null,null,null,null,null,"Corian","Deep Smokey Pearl","D",0]
[null,null,null,null,null,null,null,null,null,null,null,null,null,null,null,"Corian","Deep Space","C",0]
[null,null,null,null,null,null,null,null,null,null,null,null,null,null,null,"Corian","Deep Storm","C",0]
[null,null,null,null,null,null,null,null,null,null,null,null,null,null,null,"Corian","Deep Terrain","D",0]
[null,null,null,null,null,null,null,null,null,null,null,null,null,null,null,"Corian","Deep Titanium","C","0108044"]
[null,null,null,null,null,null,null,null,null,null,null,null,null,null,null,"Corian","Designer White","B","0108001"]
[null,null,null,null,null,null,null,null,null,null,null,null,null,null,null,"Corian","Doeskin","C","0108060"]
[null,null,null,null,null,null,null,null,null,null,null,null,null,null,null,"Corian","Dove","C","0108015"]
[null,null,null,null,null,null,null,null,null,null,null,null,null,null,null,"Corian","Dune Prima","D",0]
[null,null,null,null,null,null,null,null,null,null,null,null,null,null,null,"Corian","Earth","D","0108063"]
[null,null,null,null,null,null,null,null,null,null,null,null,null,null,null,"Corian","Ecru","D",0]
[null,null,null,null,null,null,null,null,null,null,null,null,null,null,null,"Corian","Elderberry","D",0]
[null,null,null,null,null,null,null,null,null,null,null,null,null,null,null,"Corian","Elegant Gray","B",0]
[null,null,null,null,null,null,null,null,null,null,null,null,null,null,null,"Corian","Evening Prima","D",0]
[null,null,null,null,null,null,null,null,null,null,null,null,null,null,null,"Corian","Everest","B",0]
[null,null,null,null,null,null,null,null,null,null,null,null,null,null,null,"Corian","Fawn","C",0]
[null,null,null,null,null,null,null,null,null,null,null,null,null,null,null,"Corian","Flint","C",0]
[null,null,null,null,null,null,null,null,null,null,null,null,null,null,null,"Corian","Fossil","C","0108010"]
[null,null,null,null,null,null,null,null,null,null,null,null,null,null,null,"Corian","Glacier Ice","C","0108039"]
[null,null,null,null,null,null,null,null,null,null,null,null,null,null,null,"Corian","Glacier White","A","0108002"]
[null,null,null,null,null,null,null,null,null,null,null,null,null,null,null,"Corian","Granola","C",0]
[null,null,null,null,null,null,null,null,null,null,null,null,null,null,null,"Corian","Graylite","D","0108020"]
[null,null,null,null,null,null,null,null,null,null,null,null,null,null,null,"Corian","Hazelnut","D","0108026"]
[null,null,null,null,null,null,null,null,null,null,null,null,null,null,null,"Corian","Hickory Smoke","D",0]
[null,null,null,null,null,null,null,null,null,null,null,null,null,null,null,"Corian","Jasmine","D","0108058"]
[null,null,null,null,null,null,null,null,null,null,null,null,null,null,null,"Corian","Juniper","D",0]
[null,null,null,null,null,null,null,null,null,null,null,null,null,null,null,"Corian","Lava Rock","D","0108021"]
[null,null,null,null,null,null,null,null,null,null,null,null,null,null,null,"Corian","Limestone Prima","D",0]
[null,null,null,null,null,null,null,null,null,null,null,null,null,null,null,"Corian","Linen","A","0108006"]
[null,null,null,null,null,null,null,null,null,null,null,null,null,null,null,"Corian","Matterhorn","C","0108048"]
[null,null,null,null,null,null,null,null,null,null,null,null,null,null,null,"Corian","Maui","A","0108017"]
[null,null,null,null,null,null,null,null,null,null,null,null,null,null,null,"Corian","Milky Way","D","0108064"]
[null,null,null,null,null,null,null,null,null,null,null,null,null,null,null,"Corian","Mineral","D",0]
[null,null,null,null,null,null,null,null,null,null,null,null,null,null,null,"Corian","Modern White","B",0]
[null,null,null,null,null,null,null,null,null,null,null,null,null,null,null,"Corian","Mojave","B",0]
[null,null,null,null,null,null,null,null,null,null,null,null,null,null,null,"Corian","Moss","B",0]
[null,null,null,null,null,null,null,null,null,null,null,null,null,null,null,"Corian","Natural Gray","D","0108056"]
[null,null,null,null,null,null,null,null,null,null,null,null,null,null,null,"Corian","Neutral Concrete","C",0]
[null,null,null,null,null,null,null,null,null,null,null,null,null,null,null,"Corian","NightFall","B",0]
[null,null,null,null,null,null,null,null,null,null,null,null,null,null,null,"Corian","Nimbus Prima","D",0]
[null,null,null,null,null,null,null,null,null,null,null,null,null,null,null,"Corian","Oat","C","0108045"]
[null,null,null,null,null,null,null,null,null,null,null,null,null,null,null,"Corian","Pearl Gray","B","0108033"]
[null,null,null,null,null,null,null,null,null,null,null,null,null,null,null,"Corian","Pine","C","0108054"]
[null,null,null,null,null,null,null,null,null,null,null,null,null,null,null,"Corian","Platinum","B","0108040"]
[null,null,null,null,null,null,null,null,null,null,null,null,null,null,null,"Corian","Raffia","C","0108012"]
[null,null,null,null,null,null,null,null,null,null,null,null,null,null,null,"Corian","Rain Cloud","D","0108036"]
[null,null,null,null,null,null,null,null,null,null,null,null,null,null,null,"Corian","Rice Paper","C","0108005"]
[null,null,null,null,null,null,null,null,null,null,null,null,null,null,null,"Corian","Riverbed","D","0108023"]
[null,null,null,null,null,null,null,null,null,null,null,null,null,null,null,"Corian","Rosemary","D","0108041"]
[null,null,null,null,null,null,null,null,null,null,null,null,null,null,null,"Corian","Royal Red","C","0108023"]
[null,null,null,null,null,null,null,null,null,null,null,null,null,null,null,"Corian","Saffron","D",0]
[null,null,null,null,null,null,null,null,null,null,null,null,null,null,null,"Corian","Sagebrush","D",0]
[null,null,null,null,null,null,null,null,null,null,null,null,null,null,null,"Corian","Sahara","A",0]
[null,null,null,null,null,null,null,null,null,null,null,null,null,null,null,"Corian","Sand","B",0]
[null,null,null,null,null,null,null,null,null,null,null,null,null,null,null,"Corian","Sand Storm","D","0108052"]
[null,null,null,null,null,null,null,null,null,null,null,null,null,null,null,"Corian","Sandalwood","D","0108050"]
[null,null,null,null,null,null,null,null,null,null,null,null,null,null,null,"Corian","Savannah","B","0108007"]
[null,null,null,null,null,null,null,null,null,null,null,null,null,null,null,"Corian","Seafoam","C","0108051"]
[null,null,null,null,null,null,null,null,null,null,null,null,null,null,null,"Corian","Serene Sage","C",0]
[null,null,null,null,null,null,null,null,null,null,null,null,null,null,null,"Corian","Silt","B",0]
[null,null,null,null,null,null,null,null,null,null,null,null,null,null,null,"Corian","Silver Birch","C","0108025"]
[null,null,null,null,null,null,null,null,null,null,null,null,null,null,null,"Corian","Silver Gray","A",0]
[null,null,null,null,null,null,null,null,null,null,null,null,null,null,null,"Corian","Silverite","C",0]
[null,null,null,null,null,null,null,null,null,null,null,null,null,null,null,"Corian","Smoke Drift Prima","D",0]
[null,null,null,null,null,null,null,null,null,null,null,null,null,null,null,"Corian","Sonora","D",0]
[null,null,null,null,null,null,null,null,null,null,null,null,null,null,null,"Corian","Sorrel","D","0108019"]
[null,null,null,null,null,null,null,null,null,null,null,null,null,null,null,"Corian","Sparkling White","C",0]
[null,null,null,null,null,null,null,null,null,null,null,null,null,null,null,"Corian","Stardust","D","0108057"]
[null,null,null,null,null,null,null,null,null,null,null,null,null,null,null,"Corian","Suede","C","0108029"]
[null,null,null,null,null,null,null,null,null,null,null,null,null,null,null,"Corian","Tumbleweed","D",0]
[null,null,null,null,null,null,null,null,null,null,null,null,null,null,null,"Corian","Vanilla","A",0]
[null,null,null,null,null,null,null,null,null,null,null,null,null,null,null,"Corian","Venaro White","C","0108024"]
[null,null,null,null,null,null,null,null,null,null,null,null,null,null,null,"Corian","Weathered Concrete","C",0]
[null,null,null,null,null,null,null,null,null,null,null,null,null,null,null,"Corian","Whipped Cream","C","0108027"]
[null,null,null,null,null,null,null,null,null,null,null,null,null,null,null,"Corian","Whisper","C","0108008"]
[null,null,null,null,null,null,null,null,null,null,null,null,null,null,null,"Corian","White Jasmine","C",0]
[null,null,null,null,null,null,null,null,null,null,null,null,null,null,null,"Corian","White Onyx","D",0]
[null,null,null,null,null,null,null,null,null,null,null,null,null,null,null,"Corian","Willow","C","0108032"]
[null,null,null,null,null,null,null,null,null,null,null,null,null,null,null,"Corian","Windswept Prima","D",0]
[null,null,null,null,null,null,null,null,null,null,null,null,null,null,null,"Corian","Witch Hazel","D","0108055"]
[null,null,null,null,null,null,null,null,null,null,null,null,null,null,null,"Silestone","Alpina White","C",0]
[null,null,null,null,null,null,null,null,null,null,null,null,null,null,null,"Silestone","Altair","B",0]
[null,null,null,null,null,null,null,null,null,null,null,null,null,null,null,"Silestone","Arctic","E",0]
[null,null,null,null,null,null,null,null,null,null,null,null,null,null,null,"Silestone","Ariel","C",0]
[null,null,null,null,null,null,null,null,null,null,null,null,null,null,null,"Silestone","Bamboo","D",0]
[null,null,null,null,null,null,null,null,null,null,null,null,null,null,null,"Silestone","Blanco City","A",0]
[null,null,null,null,null,null,null,null,null,null,null,null,null,null,null,"Silestone","Blanco Maple","C","0108087"]
[null,null,null,null,null,null,null,null,null,null,null,null,null,null,null,"Silestone","Blanco Orion","D",0]
[null,null,null,null,null,null,null,null,null,null,null,null,null,null,null,"Silestone","Blue Sahara","B",0]
[null,null,null,null,null,null,null,null,null,null,null,null,null,null,null,"Silestone","Calacatta Gold","E",0]
[null,null,null,null,null,null,null,null,null,null,null,null,null,null,null,"Silestone","Calypso","E",0]
[null,null,null,null,null,null,null,null,null,null,null,null,null,null,null,"Silestone","Capri Limestone","C",0]
[null,null,null,null,null,null,null,null,null,null,null,null,null,null,null,"Silestone","Cemento","B",0]
[null,null,null,null,null,null,null,null,null,null,null,null,null,null,null,"Silestone","Charcoal Soapstone","D",0]
[null,null,null,null,null,null,null,null,null,null,null,null,null,null,null,"Silestone","Chrome","E",0]
[null,null,null,null,null,null,null,null,null,null,null,null,null,null,null,"Silestone","Classic White","C",0]
[null,null,null,null,null,null,null,null,null,null,null,null,null,null,null,"Silestone","Coppermist","D",0]
[null,null,null,null,null,null,null,null,null,null,null,null,null,null,null,"Silestone","Coral Clay","B",0]
[null,null,null,null,null,null,null,null,null,null,null,null,null,null,null,"Silestone","Cygnus","B",0]
[null,null,null,null,null,null,null,null,null,null,null,null,null,null,null,"Silestone","Daria","E",0]
[null,null,null,null,null,null,null,null,null,null,null,null,null,null,null,"Silestone","Forest Snow","D",0]
[null,null,null,null,null,null,null,null,null,null,null,null,null,null,null,"Silestone","Grey Expo","A",0]
[null,null,null,null,null,null,null,null,null,null,null,null,null,null,null,"Silestone","Helix","E",0]
[null,null,null,null,null,null,null,null,null,null,null,null,null,null,null,"Silestone","Iconic Black","D",0]
[null,null,null,null,null,null,null,null,null,null,null,null,null,null,null,"Silestone","Iconic White","E",0]
[null,null,null,null,null,null,null,null,null,null,null,null,null,null,null,"Silestone","Iron Bark","B",0]
[null,null,null,null,null,null,null,null,null,null,null,null,null,null,null,"Silestone","Iron Ore","E",0]
[null,null,null,null,null,null,null,null,null,null,null,null,null,null,null,"Silestone","Kensho","D",0]
[null,null,null,null,null,null,null,null,null,null,null,null,null,null,null,"Silestone","Kimbler Mist","E",0]
[null,null,null,null,null,null,null,null,null,null,null,null,null,null,null,"Silestone","Kona Beige","C",0]
[null,null,null,null,null,null,null,null,null,null,null,null,null,null,null,"Silestone","Lagoon","D",0]
[null,null,null,null,null,null,null,null,null,null,null,null,null,null,null,"Silestone","Lena","A",0]
[null,null,null,null,null,null,null,null,null,null,null,null,null,null,null,"Silestone","Luna","E",0]
[null,null,null,null,null,null,null,null,null,null,null,null,null,null,null,"Silestone","Lusso","D",0]
[null,null,null,null,null,null,null,null,null,null,null,null,null,null,null,"Silestone","Lyra","D",0]
[null,null,null,null,null,null,null,null,null,null,null,null,null,null,null,"Silestone","Marengo","A",0]
[null,null,null,null,null,null,null,null,null,null,null,null,null,null,null,"Silestone","Marquina","E",0]
[null,null,null,null,null,null,null,null,null,null,null,null,null,null,null,"Silestone","Minerva Cream","A",0]
[null,null,null,null,null,null,null,null,null,null,null,null,null,null,null,"Silestone","Moonstone","E",0]
[null,null,null,null,null,null,null,null,null,null,null,null,null,null,null,"Silestone","Mountain Mist","C",0]
[null,null,null,null,null,null,null,null,null,null,null,null,null,null,null,"Silestone","Noka","A",0]
[null,null,null,null,null,null,null,null,null,null,null,null,null,null,null,"Silestone","Ocean Jasper","E",0]
[null,null,null,null,null,null,null,null,null,null,null,null,null,null,null,"Silestone","Ocean Storm","E",0]
[null,null,null,null,null,null,null,null,null,null,null,null,null,null,null,"Silestone","Pearl Jasmine","D",0]
[null,null,null,null,null,null,null,null,null,null,null,null,null,null,null,"Silestone","Phoenix","E",0]
[null,null,null,null,null,null,null,null,null,null,null,null,null,null,null,"Silestone","Pietra","E",0]
[null,null,null,null,null,null,null,null,null,null,null,null,null,null,null,"Silestone","Quasar","E",0]
[null,null,null,null,null,null,null,null,null,null,null,null,null,null,null,"Silestone","Riverbed","E",0]
[null,null,null,null,null,null,null,null,null,null,null,null,null,null,null,"Silestone","Royal Reef","B",0]
[null,null,null,null,null,null,null,null,null,null,null,null,null,null,null,"Silestone","Seleno","E",0]
[null,null,null,null,null,null,null,null,null,null,null,null,null,null,null,"Silestone","Serena","E",0]
[null,null,null,null,null,null,null,null,null,null,null,null,null,null,null,"Silestone","Sienna Ridge","C",0]
[null,null,null,null,null,null,null,null,null,null,null,null,null,null,null,"Silestone","Sierra Madre","C",0]
[null,null,null,null,null,null,null,null,null,null,null,null,null,null,null,"Silestone","Statuario","E",0]
[null,null,null,null,null,null,null,null,null,null,null,null,null,null,null,"Silestone","Stellar Night","D",0]
[null,null,null,null,null,null,null,null,null,null,null,null,null,null,null,"Silestone","Stellar Snow","D",0]
[null,null,null,null,null,null,null,null,null,null,null,null,null,null,null,"Silestone","Tebas Black","A",0]
[null,null,null,null,null,null,null,null,null,null,null,null,null,null,null,"Silestone","Tigris Sand","D",0]
[null,null,null,null,null,null,null,null,null,null,null,null,null,null,null,"Silestone","Unsui","D",0]
[null,null,null,null,null,null,null,null,null,null,null,null,null,null,null,"Silestone","Vortium","E",0]
[null,null,null,null,null,null,null,null,null,null,null,null,null,null,null,"Silestone","White Diamond","E",0]
[null,null,null,null,null,null,null,null,null,null,null,null,null,null,null,"Silestone","White North","B",0]
[null,null,null,null,null,null,null,null,null,null,null,null,null,null,null,"Silestone","White Platinum","E",0]
[null,null,null,null,null,null,null,null,null,null,null,null,null,null,null,"Silestone","White Storm","B","0108096"]
[null,null,null,null,null,null,null,null,null,null,null,null,null,null,null,"Silestone","White Zeus Extreme","D",0]
[null,null,null,null,null,null,null,null,null,null,null,null,null,null,null,"Silestone","Yukon Blanco","D",0]
[null,null,null,null,null,null,null,null,null,null,null,null,null,null,null,"Silestone","Zirconium","E",0]
[null,null,null,null,null,null,null,null,null,null,null,null,null,null,null,"Silestone","Absolute Green***",{"$error":"#N/A"},{"$error":"#N/A"}]
[null,null,null,null,null,null,null,null,null,null,null,null,null,null,null,"Silestone","African Red***",{"$error":"#N/A"},{"$error":"#N/A"}]
[null,null,null,null,null,null,null,null,null,null,null,null,null,null,null,"Silestone","Albedo***",{"$error":"#N/A"},{"$error":"#N/A"}]
[null,null,null,null,null,null,null,null,null,null,null,null,null,null,null,"Silestone","Amarillo Palmira***",{"$error":"#N/A"},{"$error":"#N/A"}]
[null,null,null,null,null,null,null,null,null,null,null,null,null,null,null,"Silestone","Amarillo Sand***",{"$error":"#N/A"},{"$error":"#N/A"}]
[null,null,null,null,null,null,null,null,null,null,null,null,null,null,null,"Silestone","Antique Gold***",{"$error":"#N/A"},{"$error":"#N/A"}]
[null,null,null,null,null,null,null,null,null,null,null,null,null,null,null,"Silestone","Aquatint***",{"$error":"#N/A"},{"$error":"#N/A"}]
[null,null,null,null,null,null,null,null,null,null,null,null,null,null,null,"Silestone","Arezzo***",{"$error":"#N/A"},{"$error":"#N/A"}]
[null,null,null,null,null,null,null,null,null,null,null,null,null,null,null,"Silestone","Atlantis***",{"$error":"#N/A"},{"$error":"#N/A"}]
[null,null,null,null,null,null,null,null,null,null,null,null,null,null,null,"Silestone","Bering***",{"$error":"#N/A"},{"$error":"#N/A"}]
[null,null,null,null,null,null,null,null,null,null,null,null,null,null,null,"Silestone","Black Anubis***",{"$error":"#N/A"},{"$error":"#N/A"}]
[null,null,null,null,null,null,null,null,null,null,null,null,null,null,null,"Silestone","Black Canyon***",{"$error":"#N/A"},{"$error":"#N/A"}]
[null,null,null,null,null,null,null,null,null,null,null,null,null,null,null,"Silestone","Black Dragon***",{"$error":"#N/A"},{"$error":"#N/A"}]
[null,null,null,null,null,null,null,null,null,null,null,null,null,null,null,"Silestone","Black Forest***",{"$error":"#N/A"},{"$error":"#N/A"}]
[null,null,null,null,null,null,null,null,null,null,null,null,null,null,null,"Silestone","Blue Cielo***",{"$error":"#N/A"},{"$error":"#N/A"}]
[null,null,null,null,null,null,null,null,null,null,null,null,null,null,null,"Silestone","Blue Enjoy***",{"$error":"#N/A"},{"$error":"#N/A"}]
[null,null,null,null,null,null,null,null,null,null,null,null,null,null,null,"Silestone","Blue Safita***",{"$error":"#N/A"},{"$error":"#N/A"}]
[null,null,null,null,null,null,null,null,null,null,null,null,null,null,null,"Silestone","Brazilian Brown***",{"$error":"#N/A"},{"$error":"#N/A"}]
[null,null,null,null,null,null,null,null,null,null,null,null,null,null,null,"Silestone","Caramel Rhine***",{"$error":"#N/A"},{"$error":"#N/A"}]
[null,null,null,null,null,null,null,null,null,null,null,null,null,null,null,"Silestone","Carbono***",{"$error":"#N/A"},{"$error":"#N/A"}]
[null,null,null,null,null,null,null,null,null,null,null,null,null,null,null,"Silestone","Cobalt Blue***",{"$error":"#N/A"},{"$error":"#N/A"}]
[null,null,null,null,null,null,null,null,null,null,null,null,null,null,null,"Silestone","Coffee Brown***",{"$error":"#N/A"},{"$error":"#N/A"}]
[null,null,null,null,null,null,null,null,null,null,null,null,null,null,null,"Silestone","Coral Troya***",{"$error":"#N/A"},{"$error":"#N/A"}]
[null,null,null,null,null,null,null,null,null,null,null,null,null,null,null,"Silestone","Crystal Ash***",{"$error":"#N/A"},{"$error":"#N/A"}]
[null,null,null,null,null,null,null,null,null,null,null,null,null,null,null,"Silestone","Crystal Sand***",{"$error":"#N/A"},{"$error":"#N/A"}]
[null,null,null,null,null,null,null,null,null,null,null,null,null,null,null,"Silestone","Dinux***",{"$error":"#N/A"},{"$error":"#N/A"}]
[null,null,null,null,null,null,null,null,null,null,null,null,null,null,null,"Silestone","Doradus***",{"$error":"#N/A"},{"$error":"#N/A"}]
[null,null,null,null,null,null,null,null,null,null,null,null,null,null,null,"Silestone","Dreis***",{"$error":"#N/A"},{"$error":"#N/A"}]
[null,null,null,null,null,null,null,null,null,null,null,null,null,null,null,"Silestone","Ebony Pearl***",{"$error":"#N/A"},{"$error":"#N/A"}]
[null,null,null,null,null,null,null,null,null,null,null,null,null,null,null,"Silestone","Gedatsu***",{"$error":"#N/A"},{"$error":"#N/A"}]
[null,null,null,null,null,null,null,null,null,null,null,null,null,null,null,"Silestone","Giallo Nova***",{"$error":"#N/A"},{"$error":"#N/A"}]
[null,null,null,null,null,null,null,null,null,null,null,null,null,null,null,"Silestone","Giallo Quarry***",{"$error":"#N/A"},{"$error":"#N/A"}]
[null,null,null,null,null,null,null,null,null,null,null,null,null,null,null,"Silestone","Halley***",{"$error":"#N/A"},{"$error":"#N/A"}]
[null,null,null,null,null,null,null,null,null,null,null,null,null,null,null,"Silestone","Hudson***",{"$error":"#N/A"},{"$error":"#N/A"}]
[null,null,null,null,null,null,null,null,null,null,null,null,null,null,null,"Silestone","Ink***",{"$error":"#N/A"},{"$error":"#N/A"}]
[null,null,null,null,null,null,null,null,null,null,null,null,null,null,null,"Silestone","Istmo***",{"$error":"#N/A"},{"$error":"#N/A"}]
[null,null,null,null,null,null,null,null,null,null,null,null,null,null,null,"Silestone","Ivory Coast***",{"$error":"#N/A"},{"$error":"#N/A"}]
[null,null,null,null,null,null,null,null,null,null,null,null,null,null,null,"Silestone","Kalahari***",{"$error":"#N/A"},{"$error":"#N/A"}]
[null,null,null,null,null,null,null,null,null,null,null,null,null,null,null,"Silestone","Kimbler Mist","E",0]
[null,null,null,null,null,null,null,null,null,null,null,null,null,null,null,"Silestone","Koan***",{"$error":"#N/A"},{"$error":"#N/A"}]
[null,null,null,null,null,null,null,null,null,null,null,null,null,null,null,"Silestone","Magenta Energy***",{"$error":"#N/A"},{"$error":"#N/A"}]
[null,null,null,null,null,null,null,null,null,null,null,null,null,null,null,"Silestone","Mahogany***",{"$error":"#N/A"},{"$error":"#N/A"}]
[null,null,null,null,null,null,null,null,null,null,null,null,null,null,null,"Silestone","Mont Blanc***",{"$error":"#N/A"},{"$error":"#N/A"}]
[null,null,null,null,null,null,null,null,null,null,null,null,null,null,null,"Silestone","Niebla***",{"$error":"#N/A"},{"$error":"#N/A"}]
[null,null,null,null,null,null,null,null,null,null,null,null,null,null,null,"Silestone","Night Mist***",{"$error":"#N/A"},{"$error":"#N/A"}]
[null,null,null,null,null,null,null,null,null,null,null,null,null,null,null,"Silestone","Nuit Bleue***",{"$error":"#N/A"},{"$error":"#N/A"}]
[null,null,null,null,null,null,null,null,null,null,null,null,null,null,null,"Silestone","Nymbus***",{"$error":"#N/A"},{"$error":"#N/A"}]
[null,null,null,null,null,null,null,null,null,null,null,null,null,null,null,"Silestone","Olive Green***",{"$error":"#N/A"},{"$error":"#N/A"}]
[null,null,null,null,null,null,null,null,null,null,null,null,null,null,null,"Silestone","Olivia***",{"$error":"#N/A"},{"$error":"#N/A"}]
[null,null,null,null,null,null,null,null,null,null,null,null,null,null,null,"Silestone","Orange Cool***",{"$error":"#N/A"},{"$error":"#N/A"}]
[null,null,null,null,null,null,null,null,null,null,null,null,null,null,null,"Silestone","Orange Fuego***",{"$error":"#N/A"},{"$error":"#N/A"}]
[null,null,null,null,null,null,null,null,null,null,null,null,null,null,null,"Silestone","Polar Cap***",{"$error":"#N/A"},{"$error":"#N/A"}]
[null,null,null,null,null,null,null,null,null,null,null,null,null,null,null,"Silestone","Zirix***",{"$error":"#N/A"},{"$error":"#N/A"}]
[null,null,null,null,null,null,null,null,null,null,null,null,null,null,null,"Silestone","Rainforest***",{"$error":"#N/A"},{"$error":"#N/A"}]
[null,null,null,null,null,null,null,null,null,null,null,null,null,null,null,"Silestone","Red Eros***",{"$error":"#N/A"},{"$error":"#N/A"}]
[null,null,null,null,null,null,null,null,null,null,null,null,null,null,null,"Silestone","Red Pine***",{"$error":"#N/A"},{"$error":"#N/A"}]
[null,null,null,null,null,null,null,null,null,null,null,null,null,null,null,"Silestone","Red Vital***",{"$error":"#N/A"},{"$error":"#N/A"}]
[null,null,null,null,null,null,null,null,null,null,null,null,null,null,null,"Silestone","Rosa Grey***",{"$error":"#N/A"},{"$error":"#N/A"}]
[null,null,null,null,null,null,null,null,null,null,null,null,null,null,null,"Silestone","Rosso Monza***",{"$error":"#N/A"},{"$error":"#N/A"}]
[null,null,null,null,null,null,null,null,null,null,null,null,null,null,null,"Silestone","Santa Fe Brown***",{"$error":"#N/A"},{"$error":"#N/A"}]
[null,null,null,null,null,null,null,null,null,null,null,null,null,null,null,"Silestone","Satori***",{"$error":"#N/A"},{"$error":"#N/A"}]
[null,null,null,null,null,null,null,null,null,null,null,null,null,null,null,"Silestone","Silver Nube***",{"$error":"#N/A"},{"$error":"#N/A"}]
[null,null,null,null,null,null,null,null,null,null,null,null,null,null,null,"Silestone","Bianco River***",{"$error":"#N/A"},{"$error":"#N/A"}]
[null,null,null,null,null,null,null,null,null,null,null,null,null,null,null,"Silestone","Sonora Gold***",{"$error":"#N/A"},{"$error":"#N/A"}]
[null,null,null,null,null,null,null,null,null,null,null,null,null,null,null,"Silestone","Starlight***",{"$error":"#N/A"},{"$error":"#N/A"}]
[null,null,null,null,null,null,null,null,null,null,null,null,null,null,null,"Silestone","Steel***",{"$error":"#N/A"},{"$error":"#N/A"}]
[null,null,null,null,null,null,null,null,null,null,null,null,null,null,null,"Silestone","Stellar Fire***",{"$error":"#N/A"},{"$error":"#N/A"}]
[null,null,null,null,null,null,null,null,null,null,null,null,null,null,null,"Silestone","Stellar Marine***",{"$error":"#N/A"},{"$error":"#N/A"}]
[null,null,null,null,null,null,null,null,null,null,null,null,null,null,null,"Silestone","Stellar Sun***",{"$error":"#N/A"},{"$error":"#N/A"}]
[null,null,null,null,null,null,null,null,null,null,null,null,null,null,null,"Silestone","Tao***",{"$error":"#N/A"},{"$error":"#N/A"}]
[null,null,null,null,null,null,null,null,null,null,null,null,null,null,null,"Silestone","Tea Leaf***",{"$error":"#N/A"},{"$error":"#N/A"}]
[null,null,null,null,null,null,null,null,null,null,null,null,null,null,null,"Silestone","Terra***",{"$error":"#N/A"},{"$error":"#N/A"}]
[null,null,null,null,null,null,null,null,null,null,null,null,null,null,null,"Silestone","Toffee***",{"$error":"#N/A"},{"$error":"#N/A"}]
[null,null,null,null,null,null,null,null,null,null,null,null,null,null,null,"Silestone","Tritium***",{"$error":"#N/A"},{"$error":"#N/A"}]
[null,null,null,null,null,null,null,null,null,null,null,null,null,null,null,"Silestone","Urban Cream***",{"$error":"#N/A"},{"$error":"#N/A"}]
[null,null,null,null,null,null,null,null,null,null,null,null,null,null,null,"Silestone","Verde Agua***",{"$error":"#N/A"},{"$error":"#N/A"}]
[null,null,null,null,null,null,null,null,null,null,null,null,null,null,null,"Silestone","White Dune***",{"$error":"#N/A"},{"$error":"#N/A"}]
[null,null,null,null,null,null,null,null,null,null,null,null,null,null,null,"Silestone","Yellow Dream***",{"$error":"#N/A"},{"$error":"#N/A"}]
[null,null,null,null,null,null,null,null,null,null,null,null,null,null,null,"Silestone","Zynite***",{"$error":"#N/A"},{"$error":"#N/A"}]
[null,null,null,null,null,null,null,null,null,null,null,null,null,null,null,"Silestone","Blanco City","A",0]
[null,null,null,null,null,null,null,null,null,null,null,null,null,null,null,"Silestone","Tebas Black","A",0]
[null,null,null,null,null,null,null,null,null,null,null,null,null,null,null,"Silestone","Grey Expo","A",0]
[null,null,null,null,null,null,null,null,null,null,null,null,null,null,null,"Silestone","Minerva Cream","A",0]
[null,null,null,null,null,null,null,null,null,null,null,null,null,null,null,"Silestone","Royal Cemento***",{"$error":"#N/A"},{"$error":"#N/A"}]
[null,null,null,null,null,null,null,null,null,null,null,null,null,null,null,"Silestone","Iron Bark","B",0]
[null,null,null,null,null,null,null,null,null,null,null,null,null,null,null,"Silestone","Coral Clay","B",0]
[null,null,null,null,null,null,null,null,null,null,null,null,null,null,null,"Silestone","Reef***",{"$error":"#N/A"},{"$error":"#N/A"}]
[null,null,null,null,null,null,null,null,null,null,null,null,null,null,null,"Silestone","White North","B",0]
[null,null,null,null,null,null,null,null,null,null,null,null,null,null,null,"Silestone","White Storm","B","0108096"]
[null,null,null,null,null,null,null,null,null,null,null,null,null,null,null,"Silestone","Alpina White","C",0]
[null,null,null,null,null,null,null,null,null,null,null,null,null,null,null,"Silestone","Ariel","C",0]
[null,null,null,null,null,null,null,null,null,null,null,null,null,null,null,"Silestone","Blanco Maple","C","0108087"]
[null,null,null,null,null,null,null,null,null,null,null,null,null,null,null,"Silestone","Capri Limestone","C",0]
[null,null,null,null,null,null,null,null,null,null,null,null,null,null,null,"Silestone","Classic White","C",0]
[null,null,null,null,null,null,null,null,null,null,null,null,null,null,null,"Silestone","Mountain Mist","C",0]
[null,null,null,null,null,null,null,null,null,null,null,null,null,null,null,"Silestone","Sienna Ridge","C",0]
[null,null,null,null,null,null,null,null,null,null,null,null,null,null,null,"Silestone","Sierra Madre","C",0]
[null,null,null,null,null,null,null,null,null,null,null,null,null,null,null,"Silestone","Bamboo","D",0]
[null,null,null,null,null,null,null,null,null,null,null,null,null,null,null,"Silestone","Charcoal Soapstone","D",0]
[null,null,null,null,null,null,null,null,null,null,null,null,null,null,null,"Silestone","Coppermist","D",0]
[null,null,null,null,null,null,null,null,null,null,null,null,null,null,null,"Silestone","Iconic Black","D",0]
[null,null,null,null,null,null,null,null,null,null,null,null,null,null,null,"Silestone","Lagoon","D",0]
[null,null,null,null,null,null,null,null,null,null,null,null,null,null,null,"Silestone","Lyra","D",0]
[null,null,null,null,null,null,null,null,null,null,null,null,null,null,null,"Silestone","Pearl Jasmine","D",0]
[null,null,null,null,null,null,null,null,null,null,null,null,null,null,null,"Silestone","Stellar Night","D",0]
[null,null,null,null,null,null,null,null,null,null,null,null,null,null,null,"Silestone","Unsui","D",0]
[null,null,null,null,null,null,null,null,null,null,null,null,null,null,null,"Silestone","White Zeus Extreme","D",0]
[null,null,null,null,null,null,null,null,null,null,null,null,null,null,null,"Silestone","Arctic","E",0]
[null,null,null,null,null,null,null,null,null,null,null,null,null,null,null,"Silestone","Calypso","E",0]
[null,null,null,null,null,null,null,null,null,null,null,null,null,null,null,"Silestone","Eternal Marquina***",{"$error":"#N/A"},{"$error":"#N/A"}]
[null,null,null,null,null,null,null,null,null,null,null,null,null,null,null,"Silestone","Eternal Serena***",{"$error":"#N/A"},{"$error":"#N/A"}]
[null,null,null,null,null,null,null,null,null,null,null,null,null,null,null,"Silestone","Eternal Statuario***",{"$error":"#N/A"},{"$error":"#N/A"}]
[null,null,null,null,null,null,null,null,null,null,null,null,null,null,null,"Silestone","Iconic White","E",0]
[null,null,null,null,null,null,null,null,null,null,null,null,null,null,null,"Silestone","Kimbler Mist","E",0]
[null,null,null,null,null,null,null,null,null,null,null,null,null,null,null,"Silestone","Luna","E",0]
[null,null,null,null,null,null,null,null,null,null,null,null,null,null,null,"Silestone","Pacifica***",{"$error":"#N/A"},{"$error":"#N/A"}]
[null,null,null,null,null,null,null,null,null,null,null,null,null,null,null,"Silestone","Pietra","E",0]
[null,null,null,null,null,null,null,null,null,null,null,null,null,null,null,"Silestone","Quasar","E",0]
[null,null,null,null,null,null,null,null,null,null,null,null,null,null,null,"Silestone","Seleno","E",0]
[null,null,null,null,null,null,null,null,null,null,null,null,null,null,null,"Silestone","Vortium","E",0]
[null,null,null,null,null,null,null,null,null,null,null,null,null,null,null,"Silestone","Etnl Calacatta Gold***",{"$error":"#N/A"},{"$error":"#N/A"}]
[null,null,null,null,null,null,null,null,null,null,null,null,null,null,null,"Silestone","Iron Ore","E",0]
[null,null,null,null,null,null,null,null,null,null,null,null,null,null,null,"Silestone","Riverbed","E",0]
[null,null,null,null,null,null,null,null,null,null,null,null,null,null,null,"Silestone","White Diamond","E",0]
[null,null,null,null,null,null,null,null,null,null,null,null,null,null,null,"Silestone","Royal Reef","B",0]
[null,null,null,null,null,null,null,null,null,null,null,null,null,null,null,"Corian Quartz","Antique Pearl","D",0]
[null,null,null,null,null,null,null,null,null,null,null,null,null,null,null,"Corian Quartz","Astral Pearl","D",0]
[null,null,null,null,null,null,null,null,null,null,null,null,null,null,null,"Corian Quartz","Blue Carrara ","D",0]
[null,null,null,null,null,null,null,null,null,null,null,null,null,null,null,"Corian Quartz","Borealis Blue","D",0]
[null,null,null,null,null,null,null,null,null,null,null,null,null,null,null,"Corian Quartz","Calacatta Natura","E",0]
[null,null,null,null,null,null,null,null,null,null,null,null,null,null,null,"Corian Quartz","Caraway","D",0]
[null,null,null,null,null,null,null,null,null,null,null,null,null,null,null,"Corian Quartz","Cashmere Carrara","D",0]
[null,null,null,null,null,null,null,null,null,null,null,null,null,null,null,"Corian Quartz","Cloud White","D","0108074"]
[null,null,null,null,null,null,null,null,null,null,null,null,null,null,null,"Corian Quartz","Coarse Botticino","D",0]
[null,null,null,null,null,null,null,null,null,null,null,null,null,null,null,"Corian Quartz","Coarse Carrara","D",0]
[null,null,null,null,null,null,null,null,null,null,null,null,null,null,null,"Corian Quartz","Coarse Marfil","D",0]
[null,null,null,null,null,null,null,null,null,null,null,null,null,null,null,"Corian Quartz","Coarse Pepper","D",0]
[null,null,null,null,null,null,null,null,null,null,null,null,null,null,null,"Corian Quartz","Concrete Carrara ","D",0]
[null,null,null,null,null,null,null,null,null,null,null,null,null,null,null,"Corian Quartz","Coriander","D",0]
[null,null,null,null,null,null,null,null,null,null,null,null,null,null,null,"Corian Quartz","Cygnus Pearl","D",0]
[null,null,null,null,null,null,null,null,null,null,null,null,null,null,null,"Corian Quartz","Dove Grey","D",0]
[null,null,null,null,null,null,null,null,null,null,null,null,null,null,null,"Corian Quartz","Evergreen ","D",0]
[null,null,null,null,null,null,null,null,null,null,null,null,null,null,null,"Corian Quartz","Galaxy Black","D",0]
[null,null,null,null,null,null,null,null,null,null,null,null,null,null,null,"Corian Quartz","Graphite","D",0]
[null,null,null,null,null,null,null,null,null,null,null,null,null,null,null,"Corian Quartz","Gravel","D",0]
[null,null,null,null,null,null,null,null,null,null,null,null,null,null,null,"Corian Quartz","Grigione","D",0]
[null,null,null,null,null,null,null,null,null,null,null,null,null,null,null,"Corian Quartz","Imperial","D",0]
[null,null,null,null,null,null,null,null,null,null,null,null,null,null,null,"Corian Quartz","Indigo Swirl ","D",0]
[null,null,null,null,null,null,null,null,null,null,null,null,null,null,null,"Corian Quartz","Indus Red","D",0]
[null,null,null,null,null,null,null,null,null,null,null,null,null,null,null,"Corian Quartz","London Sky","D",0]
[null,null,null,null,null,null,null,null,null,null,null,null,null,null,null,"Corian Quartz","Lunar Pearl","D",0]
[null,null,null,null,null,null,null,null,null,null,null,null,null,null,null,"Corian Quartz","Marble Mist","D",0]
[null,null,null,null,null,null,null,null,null,null,null,null,null,null,null,"Corian Quartz","Mocha Latte","D",0]
[null,null,null,null,null,null,null,null,null,null,null,null,null,null,null,"Corian Quartz","Mossy Green","D",0]
[null,null,null,null,null,null,null,null,null,null,null,null,null,null,null,"Corian Quartz","Mossy Oak ","D",0]
[null,null,null,null,null,null,null,null,null,null,null,null,null,null,null,"Corian Quartz","Mystic Black","D",0]
[null,null,null,null,null,null,null,null,null,null,null,null,null,null,null,"Corian Quartz","Neve","D",0]
[null,null,null,null,null,null,null,null,null,null,null,null,null,null,null,"Corian Quartz","Oatmeal","D",0]
[null,null,null,null,null,null,null,null,null,null,null,null,null,null,null,"Corian Quartz","Octavio","E",0]
[null,null,null,null,null,null,null,null,null,null,null,null,null,null,null,"Corian Quartz","Onyx Carrara ","D",0]
[null,null,null,null,null,null,null,null,null,null,null,null,null,null,null,"Corian Quartz","Papyrus","D",0]
[null,null,null,null,null,null,null,null,null,null,null,null,null,null,null,"Corian Quartz","Portoro","E",0]
[null,null,null,null,null,null,null,null,null,null,null,null,null,null,null,"Corian Quartz","Provence ","D",0]
[null,null,null,null,null,null,null,null,null,null,null,null,null,null,null,"Corian Quartz","Saddle Brown","D",0]
[null,null,null,null,null,null,null,null,null,null,null,null,null,null,null,"Corian Quartz","Sage","D",0]
[null,null,null,null,null,null,null,null,null,null,null,null,null,null,null,"Corian Quartz","Snodrift","D",0]
[null,null,null,null,null,null,null,null,null,null,null,null,null,null,null,"Corian Quartz","Snow Flurry","D",0]
[null,null,null,null,null,null,null,null,null,null,null,null,null,null,null,"Corian Quartz","Snow White","D","0108084"]
[null,null,null,null,null,null,null,null,null,null,null,null,null,null,null,"Corian Quartz","Space Black","D",0]
[null,null,null,null,null,null,null,null,null,null,null,null,null,null,null,"Corian Quartz","Storm Grey","D","0108080"]
[null,null,null,null,null,null,null,null,null,null,null,null,null,null,null,"Corian Quartz","Stratus White","D","0108089"]
[null,null,null,null,null,null,null,null,null,null,null,null,null,null,null,"Corian Quartz","Toasted Almond","D",0]
[null,null,null,null,null,null,null,null,null,null,null,null,null,null,null,"Corian Quartz","Toffee","D",0]
[null,null,null,null,null,null,null,null,null,null,null,null,null,null,null,"Corian Quartz","Valente Pearl","E",0]
[null,null,null,null,null,null,null,null,null,null,null,null,null,null,null,"Corian Quartz","Venetia Cream","D",0]
[null,null,null,null,null,null,null,null,null,null,null,null,null,null,null,"Corian Quartz","Versilia Grigio","E",0]
[null,null,null,null,null,null,null,null,null,null,null,null,null,null,null,"Corian Quartz","Warm Taupe","D",0]
[null,null,null,null,null,null,null,null,null,null,null,null,null,null,null,"Corian Quartz","Wild Rice","v",0]
[null,null,null,null,null,null,null,null,null,null,null,null,null,null,null,null,"List Color Name in Notes Box"]

{"sheet":"Color List 2","index":2,"n_rows":288,"n_cols":18,"rows_kept":288,"cut":false,"hidden":true,"merged":[]}
["Material Type","Brand","Color","Matl-Color","JP COLOR","Price Group","SAP Code","PriceCode","Supplier Color Code","Color Code","Ext Color Code","USE THIS",null,"IF Blank 000000",null,"Sink Color","Category","Code"]
["Quartz","Caeserstone","Alpine Mist",{"$f":"A2& \" - \" & C2","v":"Quartz - Alpine Mist"},{"$f":"A2&\" - \"&B2&\" - \"&C2","v":"Quartz - Caeserstone - Alpine Mist"},"C",null,"Quartz D",5110,"AMI",{"$f":"\"N\"&J2","v":"NAMI"},"D",null,null,null,"Silestone - Albedo***",{"$error":"#N/A"},{"$f":"IFERROR(VLOOKUP(P2,E:G,6,0),\"0000000\")","v":"0000000"}]
["Quartz","Caeserstone","Atlantic Salt","Quartz - Atlantic Salt",{"$f":"A3&\" - \"&B3&\" - \"&C3","v":"Quartz - Caeserstone - Atlantic Salt"},"B",null,"Quartz B",6270,"ASA","NASA","B",null,null,null,"Silestone - Aquatint***",{"$error":"#N/A"},"0000000"]
["Quartz","Caeserstone","Bianco Drift","Quartz - Bianco Drift","Quartz - Caeserstone - Bianco Drift","C",null,"Quartz D",6131,"BDR","NBDR","D",null,null,null,"Silestone - Ariel***",{"$error":"#N/A"},"0000000"]
["Quartz","Caeserstone","Blizzard","Quartz - Blizzard","Quartz - Caeserstone - Blizzard","A","0108095","Quartz A",2141,"BLI","NBLI","A",null,null,null,"Silestone - Bianco River","D","0000000"]
["Quartz","Caeserstone","Calacatta Nuovo","Quartz - Calacatta Nuovo","Quartz - Caeserstone - Calacatta Nuovo","E",null,"Quartz E",5131,"CAL","NCAL","E",null,null,null,"Silestone - Blanco Orion","D","0000000"]
["Quartz","Caeserstone","Clamshell","Quartz - Clamshell","Quartz - Caeserstone - Clamshell","B",null,"Quartz B",4130,"CLA","NCLA","B",null,null,null,"Silestone - Coppermist***",{"$error":"#N/A"},"0000000"]
["Quartz","Caeserstone","Coastal Grey","Quartz - Coastal Grey","Quartz - Caeserstone - Coastal Grey","C",null,"Quartz D",6003,"CGR","NCGR","D",null,null,null,"Silestone - Cygnus Suede","H","0000000"]
["Quartz","Caeserstone","Concrete","Quartz - Concrete","Quartz - Caeserstone - Concrete","A","0108099","Quartz A",2003,"CCR","NCCR","A",null,null,null,"Silestone - Daria Suede","J","0000000"]
["Quartz","Caeserstone","Cosmopolitan White","Quartz - Cosmopolitan White","Quartz - Caeserstone - Cosmopolitan White","C",null,"Quartz D",5130,"CWH","NCWH","D",null,null,null,"Silestone - Eternal Serena***",{"$error":"#N/A"},"0000000"]
["Quartz","Caeserstone","Dreamy Marfil","Quartz - Dreamy Marfil","Quartz - Caeserstone - Dreamy Marfil","C",null,"Quartz D",5220,"DMA","NDMA","D",null,null,null,"Silestone - Grey Amazon","D","0000000"]
["Quartz","Caeserstone","Eggshell","Quartz - Eggshell","Quartz - Caeserstone - Eggshell","A",null,"Quartz A",3141,"EGG","NEGG","A",null,null,null,"Silestone - Grey Expo***",{"$error":"#N/A"},"0000000"]
["Quartz","Caeserstone","Fresh Concrete","Quartz - Fresh Concrete","Quartz - Caeserstone - Fresh Concrete","C",null,"Quartz D",4001,"FCR","NFCR","D",null,null,null,"Silestone - Hudson***",{"$error":"#N/A"},"0000000"]
["Quartz","Caeserstone","Frosty Carrina","Quartz - Frosty Carrina","Quartz - Caeserstone - Frosty Carrina","C",null,"Quartz D",5141,"FCA","NFCA","D",null,null,null,"Silestone - Iconic White***",{"$error":"#N/A"},"0000000"]
["Quartz","Caeserstone","Geogian Bluffs","Quartz - Geogian Bluffs","Quartz - Caeserstone - Geogian Bluffs","C",null,"Quartz D",6134,"GBL","NGBL","D",null,null,null,"Silestone - Iron Bark***",{"$error":"#N/A"},"0000000"]
["Quartz","Caeserstone","Ginger","Quartz - Ginger","Quartz - Caeserstone - Ginger","A",null,"Quartz A",4330,"GIN","NGIN","A",null,null,null,"Silestone - Iron Ore***",{"$error":"#N/A"},"0000000"]
["Quartz","Caeserstone","Haze","Quartz - Haze","Quartz - Caeserstone - Haze","B",null,"Quartz B",2030,"HAZ","NHAZ","B",null,null,null,"Silestone - Koan***",{"$error":"#N/A"},"0000000"]
["Quartz","Caeserstone","Jet Black","Quartz - Jet Black","Quartz - Caeserstone - Jet Black","B",null,"Quartz B",3100,"JBL","NJBL","B",null,null,null,"Silestone - Marengo","A","0000000"]
["Quartz","Caeserstone","Lagos Blue","Quartz - Lagos Blue","Quartz - Caeserstone - Lagos Blue","B",null,"Quartz B",4350,"LBL","NLBL","B",null,null,null,"Silestone - Mountain Mist***",{"$error":"#N/A"},"0000000"]
["Quartz","Caeserstone","Linen","Quartz - Linen","Quartz - Caeserstone - Linen","B",null,"Quartz B",2230,"LIN","NLIN","B",null,null,null,"Silestone - Noka","A","0000000"]
["Quartz","Caeserstone","London Grey","Quartz - London Grey","Quartz - Caeserstone - London Grey","C",null,"Quartz D",5000,"LGR","NLGR","D",null,null,null,"Silestone - Nuit Bleue***",{"$error":"#N/A"},"0000000"]
["Quartz","Caeserstone","Montblanc","Quartz - Montblanc","Quartz - Caeserstone - Montblanc","C",null,"Quartz D",5043,"MBL","NMBL","D",null,null,null,"Silestone - Red Vital***",{"$error":"#N/A"},"0000000"]
["Quartz","Caeserstone","Moorland Fog","Quartz - Moorland Fog","Quartz - Caeserstone - Moorland Fog","B",null,"Quartz B",6046,"MLF","NMLF","B",null,null,null,"Silestone - Riverbed***",{"$error":"#N/A"},"0000000"]
["Quartz","Caeserstone","Nobel Grey","Quartz - Nobel Grey","Quartz - Caeserstone - Nobel Grey","C",null,"Quartz D",5211,"NGR","NNGR","D",null,null,null,"Silestone - Sienna Ridge***",{"$error":"#N/A"},"0000000"]
["Quartz","Caeserstone","Nougat","Quartz - Nougat","Quartz - Caeserstone - Nougat","A",null,"Quartz A",6600,"NOU","NNOU","A",null,null,null,"Silestone - Silver Nube***",{"$error":"#N/A"},"0000000"]
["Quartz","Caeserstone","Ocean Foam","Quartz - Ocean Foam","Quartz - Caeserstone - Ocean Foam","B",null,"Quartz B",6141,"OFO","NOFO","B",null,null,null,"Silestone - Starlight***",{"$error":"#N/A"},"0000000"]
["Quartz","Caeserstone","Organic White","Quartz - Organic White","Quartz - Caeserstone - Organic White","B",null,"Quartz B",4600,"OWH","NOWH","B",null,null,null,"Silestone - Stellar Night***",{"$error":"#N/A"},"0000000"]
["Quartz","Caeserstone","Pebble","Quartz - Pebble","Quartz - Caeserstone - Pebble","B",null,"Quartz B",4030,"PEB","NPEB","B",null,null,null,"Silestone - Tebas Black***",{"$error":"#N/A"},"0000000"]
["Quartz","Caeserstone","Piatra Grey","Quartz - Piatra Grey","Quartz - Caeserstone - Piatra Grey","C",null,"Quartz D",5003,"PIA","NPIA","D",null,null,null,"Silestone - Tigris Sand","D","0000000"]
["Quartz","Caeserstone","Pure White","Quartz - Pure White","Quartz - Caeserstone - Pure White","C",null,"Quartz D",1141,"PWH","NPWH","D",null,null,null,"Silestone - Urban Cream***",{"$error":"#N/A"},"0000000"]
["Quartz","Caeserstone","Quartz Reflections","Quartz - Quartz Reflections","Quartz - Caeserstone - Quartz Reflections","B",null,"Quartz B",7141,"QRE","NQRE","B",null,null,null,"Silestone - Verde Agua***",{"$error":"#N/A"},"0000000"]
["Quartz","Caeserstone","Raven","Quartz - Raven","Quartz - Caeserstone - Raven","B",null,"Quartz B",4120,"RAV","NRAV","B",null,null,null,"Silestone - White Diamond***",{"$error":"#N/A"},"0000000"]
["Quartz","Caeserstone","Raw Concrete","Quartz - Raw Concrete","Quartz - Caeserstone - Raw Concrete","C",null,"Quartz D",4004,"RCR","NRCR","D",null,null,null,"Silestone - White Dune***",{"$error":"#N/A"},"0000000"]
["Quartz","Caeserstone","Rugged Concrete","Quartz - Rugged Concrete","Quartz - Caeserstone - Rugged Concrete","C",null,"Quartz D",4033,"RGC","NRGC","D",null,null,null,"Silestone - White Zeus Extreme***",{"$error":"#N/A"},"0000000"]
["Quartz","Caeserstone","Shitake","Quartz - Shitake","Quartz - Caeserstone - Shitake","B",null,"Quartz B",4230,"SHI","NSHI","B",null,null,null,"Zodiaq - Antique Pearl","A","0000000"]
["Quartz","Caeserstone","Sleek Concrete","Quartz - Sleek Concrete","Quartz - Caeserstone - Sleek Concrete","B",null,"Quartz B",4003,"SCR","NSCR","B",null,null,null,"Zodiaq - Calacatta Natura","B","0000000"]
["Quartz","Caeserstone","Statuario Maximus","Quartz - Statuario Maximus","Quartz - Caeserstone - Statuario Maximus","E",null,"Quartz E",5031,"SMA","NSMA","E",null,null,null,"Zodiaq - Coarse Carrara","A","0000000"]
["Quartz","Caeserstone","Statuario Nuovo","Quartz - Statuario Nuovo","Quartz - Caeserstone - Statuario Nuovo","E",null,"Quartz E",5111,"SNU","NSNU","E",null,null,null,"Zodiaq - Coarse Marfil","A","0000000"]
["Quartz","Caeserstone","Sympony Grey","Quartz - Sympony Grey","Quartz - Caeserstone - Sympony Grey","C",null,"Quartz D",5133,"SGR","NSGR","D",null,null,null,"Zodiaq - Evergreen","A","0000000"]
["Quartz","Caeserstone","Taj Royal","Quartz - Taj Royal","Quartz - Caeserstone - Taj Royal","C",null,"Quartz D",5212,"TAJ","NTAJ","D",null,null,null,"Zodiaq - Galaxy Black","A","0000000"]
["Quartz","Caeserstone","Turbine Grey","Quartz - Turbine Grey","Quartz - Caeserstone - Turbine Grey","B",null,"Quartz B",6313,"TGR","NTGR","B",null,null,null,"Zodiaq - Indus Red","A","0000000"]
["Quartz","Caeserstone","Tuscan Dawn","Quartz - Tuscan Dawn","Quartz - Caeserstone - Tuscan Dawn","C",null,"Quartz D",5104,"TDA","NTDA","D",null,null,null,"Zodiaq - London Sky","A","0000000"]
["Quartz","Caeserstone","Urban Safari","Quartz - Urban Safari","Quartz - Caeserstone - Urban Safari","C",null,"Quartz D",5134,"USA","NUSA","D",null,null,null,"Zodiaq - Marble Mist","A","0000000"]
["Quartz","Caeserstone","Villa Noir","Quartz - Villa Noir","Quartz - Caeserstone - Villa Noir","C",null,"Quartz D",5100,"VNO","NVNO","D",null,null,null,"Zodiaq - Mystic Black","A","0000000"]
["Quartz","Caeserstone","White Attica","Quartz - White Attica","Quartz - Caeserstone - White Attica","C",null,"Quartz D",5143,"WHA","NWHA","D",null,null,null,"Zodiaq - Octavio","B","0000000"]
["Quartz","Caeserstone","Wild Rice","Quartz - Wild Rice","Quartz - Caeserstone - Wild Rice","B",null,"Quartz B",4360,"WRI","NWRI","B",null,null,null,"Zodiaq - Storm Grey","A","0000000"]
["Quartz","Caeserstone","Woodlands","Quartz - Woodlands","Quartz - Caeserstone - Woodlands","C",null,"Quartz D",6338,"WOO","NWOO","D",null,null,null,"Zodiaq - Stratus White","A","0000000"]
["Solid Surface","Corian","Abalone","Solid Surface - Abalone","Solid Surface - Corian - Abalone","A","0000001",{"$f":"\"Corian \" & F48","v":"Corian A"},{"$f":"J48","v":"ABA"},"ABA","CABA","A",null,null,null,"Corian - Abalone","A","0000000"]
["Solid Surface","Corian","Allspice","Solid Surface - Allspice","Solid Surface - Corian - Allspice","D","=J2+1","Corian D","ALS","ALS","CALS","D",null,null,null,"Corian - Allspice","D","0000000"]
["Solid Surface","Corian","Antarctica","Solid Surface - Antarctica","Solid Surface - Corian - Antarctica","B","0108003","Corian B","MAN","MAN","CMAN","B",null,null,null,"Corian - Antarctica","B","0000000"]
["Solid Surface","Corian","Anthracite","Solid Surface - Anthracite","Solid Surface - Corian - Anthracite","C","0108035","Corian C","ANT","ANT","CANT","C",null,null,null,"Corian - Anthracite","C","0000000"]
["Solid Surface","Corian","Aqualite","Solid Surface - Aqualite","Solid Surface - Corian - Aqualite","D",null,"Corian D","AQT","AQT","CAQT","D",null,null,null,"Corian - Aqualite","D","0000000"]
["Solid Surface","Corian","Arctic Ice","Solid Surface - Arctic Ice","Solid Surface - Corian - Arctic Ice","C","0108028","Corian C","ARI","ARI","CARI","C",null,null,null,"Corian - Arctic Ice","C","0000000"]
["Solid Surface","Corian","Arrowroot","Solid Surface - Arrowroot","Solid Surface - Corian - Arrowroot","D","0108034","Corian D","ARR","ARR","CARR","D",null,null,null,"Corian - Arrowroot","D","0000000"]
["Solid Surface","Corian","Ash Concrete","Solid Surface - Ash Concrete","Solid Surface - Corian - Ash Concrete","C",null,"Corian C","ACN","ACN","CACN","C",null,null,null,"Corian - Ash Concrete","C","0000000"]
["Solid Surface","Corian","Basil","Solid Surface - Basil","Solid Surface - Corian - Basil","D",null,"Corian D","BSL","BSL","CBSL","D",null,null,null,"Corian - Basil","D","0000000"]
["Solid Surface","Corian","Bisque","Solid Surface - Bisque","Solid Surface - Corian - Bisque","A","0108042","Corian A","BIS","BIS","CBIS","A",null,null,null,"Corian - Bisque","A","0000000"]
["Solid Surface","Corian","Blue Pebble","Solid Surface - Blue Pebble","Solid Surface - Corian - Blue Pebble","B","0108016","Corian B","BPE","BPE","CBPE","B",null,null,null,"Corian - Blue Pebble","B","0000000"]
["Solid Surface","Corian","Blue Spice","Solid Surface - Blue Spice","Solid Surface - Corian - Blue Spice","C",null,"Corian C","BLS","BLS","CBLS","C",null,null,null,"Corian - Blue Spice","C","0000000"]
["Solid Surface","Corian","Bone","Solid Surface - Bone","Solid Surface - Corian - Bone","A",null,"Corian A","BNE","BNE","CBNE","A",null,null,null,"Corian - Bone","A","0000000"]
["Solid Surface","Corian","Bronzite","Solid Surface - Bronzite","Solid Surface - Corian - Bronzite","C",null,"Corian C","BRO","BRO","CBRO","C",null,null,null,"Corian - Bronzite","C","0000000"]
["Solid Surface","Corian","Burled Birch","Solid Surface - Burled Birch","Solid Surface - Corian - Burled Birch","D",null,"Corian D","BUB","BUB","CBUB","D",null,null,null,"Corian - Burled Birch","D","0000000"]
["Solid Surface","Corian","Cameo White","Solid Surface - Cameo White","Solid Surface - Corian - Cameo White","A","0108004","Corian A","CWH","CWH","CCWH","A",null,null,null,"Corian - Cameo White","A","0000000"]
["Solid Surface","Corian","Canvas","Solid Surface - Canvas","Solid Surface - Corian - Canvas","C","0108009","Corian C","CVS","CVS","CCVS","C",null,null,null,"Corian - Canvas","C","0000000"]
["Solid Surface","Corian","Canyon","Solid Surface - Canyon","Solid Surface - Corian - Canyon","B",null,"Corian B","CAN","CAN","CCAN","B",null,null,null,"Corian - Canyon","B","0000000"]
["Solid Surface","Corian","Carbon Concrete",{"$f":"A66& \" - \" & C66","v":"Solid Surface - Carbon Concrete"},"Solid Surface - Corian - Carbon Concrete","C",null,"Corian C","CCN","CCN","CCCN","C",null,null,null,"Corian - Carbon Concrete","C",{"$f":"IFERROR(VLOOKUP(P66,E:G,6,0),\"0000000\")","v":"0000000"}]
["Solid Surface","Corian","Cilantro","Solid Surface - Cilantro",{"$f":"A67&\" - \"&B67&\" - \"&C67","v":"Solid Surface - Corian - Cilantro"},"C",null,"Corian C","CIL","CIL","CCIL","C",null,null,null,"Corian - Cilantro","C","0000000"]
["Solid Surface","Corian","Clam Shell","Solid Surface - Clam Shell","Solid Surface - Corian - Clam Shell","D",null,"Corian D","CSH","CSH","CCSH","D",null,null,null,"Corian - Clam Shell","D","0000000"]
["Solid Surface","Corian","Cobalt","Solid Surface - Cobalt","Solid Surface - Corian - Cobalt","C",null,"Corian C","COB","COB","CCOB","C",null,null,null,"Corian - Cobalt","C","0000000"]
["Solid Surface","Corian","Cocoa Brown","Solid Surface - Cocoa Brown","Solid Surface - Corian - Cocoa Brown","B","0108047","Corian B","CBR","CBR","CCBR","B",null,null,null,"Corian - Cocoa Brown","B","0000000"]
["Solid Surface","Corian","Cocoa Prima","Solid Surface - Cocoa Prima","Solid Surface - Corian - Cocoa Prima","D",null,"Corian D","CPM","CPM","CCPM","D",null,null,null,"Corian - Cocoa Prima","D","0000000"]
["Solid Surface","Corian","Concrete","Solid Surface - Concrete","Solid Surface - Corian - Concrete","C","0108013","Corian C","CON","CON","CCON","C",null,null,null,"Corian - Concrete","C","0000000"]
["Solid Surface","Corian","Cosmos Prima","Solid Surface - Cosmos Prima","Solid Surface - Corian - Cosmos Prima","D",null,"Corian D","OPM","OPM","COPM","D",null,null,null,"Corian - Cosmos Prima","D","0000000"]
["Solid Surface","Corian","Cottage Lane","Solid Surface - Cottage Lane","Solid Surface - Corian - Cottage Lane","C",null,"Corian C","COL","COL","CCOL","C",null,null,null,"Corian - Cottage Lane","C","0000000"]
["Solid Surface","Corian","Deep Anthracite","Solid Surface - Deep Anthracite","Solid Surface - Corian - Deep Anthracite","C",null,"Corian C","DAT","DAT","CDAT","C",null,null,null,"Corian - Deep Anthracite","C","0000000"]
["Solid Surface","Corian","Deep Bedrock","Solid Surface - Deep Bedrock","Solid Surface - Corian - Deep Bedrock","C",null,"Corian C","DBR","DBR","CDBR","C",null,null,null,"Corian - Deep Bedrock","C","0000000"]
["Solid Surface","Corian","Deep Black Quartz","Solid Surface - Deep Black Quartz","Solid Surface - Corian - Deep Black Quartz","C",null,"Corian C","DBQ","DBQ","CDBQ","C",null,null,null,"Corian - Deep Black Quartz","C","0000000"]
["Solid Surface","Corian","Deep Caviar","Solid Surface - Deep Caviar","Solid Surface - Corian - Deep Caviar","C",null,"Corian C","DCV","DCV","CDCV","C",null,null,null,"Corian - Deep Caviar","C","0000000"]
["Solid Surface","Corian","Deep Cloud","Solid Surface - Deep Cloud","Solid Surface - Corian - Deep Cloud","C","0108037","Corian C","DCL","DCL","CDCL","C",null,null,null,"Corian - Deep Cloud","C","0000000"]
["Solid Surface","Corian","Deep Espresso","Solid Surface - Deep Espresso","Solid Surface - Corian - Deep Espresso","C",null,{"$f":"\"Corian \" & F80","v":"Corian C"},{"$f":"J80","v":"DEP"},"DEP","CDEP","C",null,null,null,"Corian - Deep Espresso","C","0000000"]
["Solid Surface","Corian","Deep Inkwell","Solid Surface - Deep Inkwell","Solid Surface - Corian - Deep Inkwell","D",null,"Corian D","DIW","DIW","CDIW","D",null,null,null,"Corian - Deep Inkwell","D","0000000"]
["Solid Surface","Corian","Deep Lapis","Solid Surface - Deep Lapis","Solid Surface - Corian - Deep Lapis","D",null,"Corian D","DLS","DLS","CDLS","D",null,null,null,"Corian - Deep Lapis","D","0000000"]
["Solid Surface","Corian","Deep Mink","Solid Surface - Deep Mink","Solid Surface - Corian - Deep Mink","C","0108053","Corian C","DMK","DMK","CDMK","C",null,null,null,"Corian - Deep Mink","C","0000000"]
["Solid Surface","Corian","Deep Night Sky","Solid Surface - Deep Night Sky","Solid Surface - Corian - Deep Night Sky","C","0108018","Corian C","DNS","DNS","CDNS","C",null,null,null,"Corian - Deep Night Sky","C","0000000"]
["Solid Surface","Corian","Deep Nocturne","Solid Surface - Deep Nocturne","Solid Surface - Corian - Deep Nocturne","C","0108061","Corian C","DNC","DNC","CDNC","C",null,null,null,"Corian - Deep Nocturne","C","0000000"]
["Solid Surface","Corian","Deep Sable","Solid Surface - Deep Sable","Solid Surface - Corian - Deep Sable","C","0108065","Corian C","DSB","DSB","CDSB","C",null,null,null,"Corian - Deep Sable","C","0000000"]
["Solid Surface","Corian","Deep Smokey Pearl","Solid Surface - Deep Smokey Pearl","Solid Surface - Corian - Deep Smokey Pearl","D",null,"Corian D","DSY","DSY","CDSY","D",null,null,null,"Corian - Deep Smokey Pearl","D","0000000"]
["Solid Surface","Corian","Deep Space","Solid Surface - Deep Space","Solid Surface - Corian - Deep Space","C",null,"Corian C","DSC","DSC","CDSC","C",null,null,null,"Corian - Deep Space","C","0000000"]
["Solid Surface","Corian","Deep Storm","Solid Surface - Deep Storm","Solid Surface - Corian - Deep Storm","C",null,"Corian C","DSM","DSM","CDSM","C",null,null,null,"Corian - Deep Storm","C","0000000"]
["Solid Surface","Corian","Deep Terrain","Solid Surface - Deep Terrain","Solid Surface - Corian - Deep Terrain","D",null,"Corian D","DTR","DTR","CDTR","D",null,null,null,"Corian - Deep Terrain","D","0000000"]
["Solid Surface","Corian","Deep Titanium","Solid Surface - Deep Titanium","Solid Surface - Corian - Deep Titanium","C","0108044","Corian C","DTI","DTI","CDTI","C",null,null,null,"Corian - Deep Titanium","C","0000000"]
["Solid Surface","Corian","Designer White","Solid Surface - Designer White","Solid Surface - Corian - Designer White","B","0108001","Corian B","DEW","DEW","CDEW","B",null,null,null,"Corian - Designer White","B","0000000"]
["Solid Surface","Corian","Doeskin","Solid Surface - Doeskin","Solid Surface - Corian - Doeskin","C","0108060","Corian C","DOE","DOE","CDOE","C",null,null,null,"Corian - Doeskin","C","0000000"]
["Solid Surface","Corian","Dove","Solid Surface - Dove","Solid Surface - Corian - Dove","C","0108015","Corian C","DOV","DOV","CDOV","C",null,null,null,"Corian - Dove","C","0000000"]
["Solid Surface","Corian","Dune Prima","Solid Surface - Dune Prima","Solid Surface - Corian - Dune Prima","D",null,"Corian D","DPM","DPM","CDPM","D",null,null,null,"Corian - Dune Prima","D","0000000"]
["Solid Surface","Corian","Earth","Solid Surface - Earth","Solid Surface - Corian - Earth","D","0108063","Corian D","EAR","EAR","CEAR","D",null,null,null,"Corian - Earth","D","0000000"]
["Solid Surface","Corian","Ecru","Solid Surface - Ecru","Solid Surface - Corian - Ecru","D",null,"Corian D","ECR","ECR","CECR","D",null,null,null,"Corian - Ecru","D","0000000"]
["Solid Surface","Corian","Elderberry","Solid Surface - Elderberry","Solid Surface - Corian - Elderberry","D",null,"Corian D","ELB","ELB","CELB","D",null,null,null,"Corian - Elderberry","D","0000000"]
["Solid Surface","Corian","Elegant Gray","Solid Surface - Elegant Gray","Solid Surface - Corian - Elegant Gray","B",null,"Corian B","EGG","EGG","CEGG","B",null,null,null,"Corian - Elegant Gray","B","0000000"]
["Solid Surface","Corian","Evening Prima","Solid Surface - Evening Prima","Solid Surface - Corian - Evening Prima","D",null,"Corian D","EPM","EPM","CEPM","D",null,null,null,"Corian - Evening Prima","D","0000000"]
["Solid Surface","Corian","Everest","Solid Surface - Everest","Solid Surface - Corian - Everest","B",null,"Corian B","EVE","EVE","CEVE","B",null,null,null,"Corian - Everest","B","0000000"]
["Solid Surface","Corian","Fawn","Solid Surface - Fawn","Solid Surface - Corian - Fawn","C",null,"Corian C","FAW","FAW","CFAW","C",null,null,null,"Corian - Fawn","C","0000000"]
["Solid Surface","Corian","Flint","Solid Surface - Flint","Solid Surface - Corian - Flint","C",null,"Corian C","FLI","FLI","CFLI","C",null,null,null,"Corian - Flint","C","0000000"]
["Solid Surface","Corian","Fossil","Solid Surface - Fossil","Solid Surface - Corian - Fossil","C","0108010","Corian C","FOS","FOS","CFOS","C",null,null,null,"Corian - Fossil","C","0000000"]
["Solid Surface","Corian","Glacier Ice","Solid Surface - Glacier Ice","Solid Surface - Corian - Glacier Ice","C","0108039","Corian C","GLI","GLI","CGLI","C",null,null,null,"Corian - Glacier Ice","C","0000000"]
["Solid Surface","Corian","Glacier White","Solid Surface - Glacier White","Solid Surface - Corian - Glacier White","A","0108002","Corian A","GLW","GLW","CGLW","A",null,null,null,"Corian - Glacier White","A","0000000"]
["Solid Surface","Corian","Granola","Solid Surface - Granola","Solid Surface - Corian - Granola","C",null,"Corian C","GOA","GOA","CGOA","C",null,null,null,"Corian - Granola","C","0000000"]
["Solid Surface","Corian","Graylite","Solid Surface - Graylite","Solid Surface - Corian - Graylite","D","0108020","Corian D","GYT","GYT","CGYT","D",null,null,null,"Corian - Graylite","D","0000000"]
["Solid Surface","Corian","Hazelnut","Solid Surface - Hazelnut","Solid Surface - Corian - Hazelnut","D","0108026","Corian D","HAZ","HAZ","CHAZ","D",null,null,null,"Corian - Hazelnut","D","0000000"]
["Solid Surface","Corian","Hickory Smoke","Solid Surface - Hickory Smoke","Solid Surface - Corian - Hickory Smoke","D",null,"Corian D","HIS","HIS","CHIS","D",null,null,null,"Corian - Hickory Smoke","D","0000000"]
["Solid Surface","Corian","Jasmine","Solid Surface - Jasmine","Solid Surface - Corian - Jasmine","D","0108058","Corian D","JAS","JAS","CJAS","D",null,null,null,"Corian - Jasmine","D","0000000"]
["Solid Surface","Corian","Juniper","Solid Surface - Juniper","Solid Surface - Corian - Juniper","D",null,{"$f":"\"Corian \" & F112","v":"Corian D"},{"$f":"J112","v":"JUN"},"JUN","CJUN","D",null,null,null,"Corian - Juniper","D","0000000"]
["Solid Surface","Corian","Lava Rock","Solid Surface - Lava Rock","Solid Surface - Corian - Lava Rock","D","0108021","Corian D","LAR","LAR","CLAR","D",null,null,null,"Corian - Lava Rock","D","0000000"]
["Solid Surface","Corian","Limestone Prima","Solid Surface - Limestone Prima","Solid Surface - Corian - Limestone Prima","D",null,"Corian D","LPM","LPM","CLPM","D",null,null,null,"Corian - Limestone Prima","D","0000000"]
["Solid Surface","Corian","Linen","Solid Surface - Linen","Solid Surface - Corian - Linen","A","0108006","Corian A","LIN","LIN","CLIN","A",null,null,null,"Corian - Linen","A","0000000"]
["Solid Surface","Corian","Matterhorn","Solid Surface - Matterhorn","Solid Surface - Corian - Matterhorn","C","0108048","Corian C","MAT","MAT","CMAT","C",null,null,null,"Corian - Matterhorn","C","0000000"]
["Solid Surface","Corian","Maui","Solid Surface - Maui","Solid Surface - Corian - Maui","A","0108017","Corian A","MAU","MAU","CMAU","A",null,null,null,"Corian - Maui","A","0000000"]
["Solid Surface","Corian","Milky Way","Solid Surface - Milky Way","Solid Surface - Corian - Milky Way","D","0108064","Corian D","MKW","MKW","CMKW","D",null,null,null,"Corian - Milky Way","D","0000000"]
["Solid Surface","Corian","Mineral","Solid Surface - Mineral","Solid Surface - Corian - Mineral","D",null,"Corian D","MIN","MIN","CMIN","D",null,null,null,"Corian - Mineral","D","0000000"]
["Solid Surface","Corian","Modern White","Solid Surface - Modern White","Solid Surface - Corian - Modern White","B",null,"Corian B","MOW","MOW","CMOW","B",null,null,null,"Corian - Modern White","B","0000000"]
["Solid Surface","Corian","Mojave","Solid Surface - Mojave","Solid Surface - Corian - Mojave","B",null,"Corian B","SMJ","SMJ","CSMJ","B",null,null,null,"Corian - Mojave","B","0000000"]
["Solid Surface","Corian","Moss","Solid Surface - Moss","Solid Surface - Corian - Moss","B",null,"Corian B","MOS","MOS","CMOS","B",null,null,null,"Corian - Moss","B","0000000"]
["Solid Surface","Corian","Natural Gray","Solid Surface - Natural Gray","Solid Surface - Corian - Natural Gray","D","0108056","Corian D","NGR","NGR","CNGR","D",null,null,null,"Corian - Natural Gray","D","0000000"]
["Solid Surface","Corian","Neutral Concrete","Solid Surface - Neutral Concrete","Solid Surface - Corian - Neutral Concrete","C",null,"Corian C","NCN","NCN","CNCN","C",null,null,null,"Corian - Neutral Concrete","C","0000000"]
["Solid Surface","Corian","NightFall","Solid Surface - NightFall","Solid Surface - Corian - NightFall","B",null,"Corian B","NIF","NIF","CNIF","B",null,null,null,"Corian - NightFall","B","0000000"]
["Solid Surface","Corian","Nimbus Prima","Solid Surface - Nimbus Prima","Solid Surface - Corian - Nimbus Prima","D",null,"Corian D","NPM","NPM","CNPM","D",null,null,null,"Corian - Nimbus Prima","D","0000000"]
["Solid Surface","Corian","Oat","Solid Surface - Oat","Solid Surface - Corian - Oat","C","0108045","Corian C","OAA","OAA","COAA","C",null,null,null,"Corian - Oat","C","0000000"]
["Solid Surface","Corian","Pearl Gray","Solid Surface - Pearl Gray","Solid Surface - Corian - Pearl Gray","B","0108033","Corian B","PLG","PLG","CPLG","B",null,null,null,"Corian - Pearl Gray","B","0000000"]
["Solid Surface","Corian","Pine","Solid Surface - Pine","Solid Surface - Corian - Pine","C","0108054","Corian C","PNE","PNE","CPNE","C",null,null,null,"Corian - Pine","C","0000000"]
["Solid Surface","Corian","Platinum",{"$f":"A130& \" - \" & C130","v":"Solid Surface - Platinum"},"Solid Surface - Corian - Platinum","B","0108040","Corian B","MPL","MPL","CMPL","B",null,null,null,"Corian - Platinum","B",{"$f":"IFERROR(VLOOKUP(P130,E:G,6,0),\"0000000\")","v":"0000000"}]
["Quartz","Corian - Quartz","ANTIQUE PEARL","Quartz - ANTIQUE PEARL",{"$f":"A131&\" - \"&B131&\" - \"&C131","v":"Quartz - Corian - Quartz - ANTIQUE PEARL"},"A",null,"Quartz D",null,"TPE","ZTPE","D",null,null,null,"Corian - Raffia","C","0000000"]
["Quartz","Corian - Quartz","ASTRAL PEARL","Quartz - ASTRAL PEARL","Quartz - Corian - Quartz - ASTRAL PEARL","A",null,"Quartz D",null,"APE","ZAPE","D",null,null,null,"Corian - Rain Cloud","D","0000000"]
["Quartz","Corian - Quartz","BLUE CARRARA ","Quartz - BLUE CARRARA ","Quartz - Corian - Quartz - BLUE CARRARA ","A",null,"Quartz D",null,"BCA","ZBCA","D",null,null,null,"Corian - Rice Paper","C","0000000"]
["Quartz","Corian - Quartz","BOREALIS BLUE","Quartz - BOREALIS BLUE","Quartz - Corian - Quartz - BOREALIS BLUE","A",null,"Quartz D",null,"BBU","ZBBU","D",null,null,null,"Corian - Riverbed","D","0000000"]
["Quartz","Corian - Quartz","CALACATTA NATURA","Quartz - CALACATTA NATURA","Quartz - Corian - Quartz - CALACATTA NATURA","B",null,"Quartz E",null,"CAL","ZCAL","E",null,null,null,"Corian - Rosemary","D","0000000"]
["Quartz","Corian - Quartz","CARAWAY","Quartz - CARAWAY","Quartz - Corian - Quartz - CARAWAY","A",null,"Quartz D",null,"CRW","ZCRW","D",null,null,null,"Corian - Royal Red","C","0000000"]
["Quartz","Corian - Quartz","CASHMERE CARRARA","Quartz - CASHMERE CARRARA","Quartz - Corian - Quartz - CASHMERE CARRARA","A",null,"Quartz D",null,"CAC","ZCAC","D",null,null,null,"Corian - Saffron","D","0000000"]
["Quartz","Corian - Quartz","CLOUD WHITE","Quartz - CLOUD WHITE","Quartz - Corian - Quartz - CLOUD WHITE","A","0108074","Quartz D",null,"CWH","ZCWH","D",null,null,null,"Corian - Sagebrush","D","0000000"]
["Quartz","Corian - Quartz","COARSE BOTTICINO","Quartz - COARSE BOTTICINO","Quartz - Corian - Quartz - COARSE BOTTICINO","A",null,"Quartz D",null,"CBO","ZCBO","D",null,null,null,"Corian - Sahara","A","0000000"]
["Quartz","Corian - Quartz","COARSE CARRARA","Quartz - COARSE CARRARA","Quartz - Corian - Quartz - COARSE CARRARA","A",null,"Quartz D",null,"CCA","ZCCA","D",null,null,null,"Corian - Sand","B","0000000"]
["Quartz","Corian - Quartz","COARSE MARFIL","Quartz - COARSE MARFIL","Quartz - Corian - Quartz - COARSE MARFIL","A",null,"Quartz D",null,"CMA","ZCMA","D",null,null,null,"Corian - Sand Storm","D","0000000"]
["Quartz","Corian - Quartz","COARSE PEPPER","Quartz - COARSE PEPPER","Quartz - Corian - Quartz - COARSE PEPPER","A",null,"Quartz D",null,"CPR","ZCPR","D",null,null,null,"Corian - Sandalwood","D","0000000"]
["Quartz","Corian - Quartz","CONCRETE CARRARA ","Quartz - CONCRETE CARRARA ","Quartz - Corian - Quartz - CONCRETE CARRARA ","A",null,"Quartz D",null,"CON","ZCON","D",null,null,null,"Corian - Savannah","B","0000000"]
["Quartz","Corian - Quartz","CORIANDER","Quartz - CORIANDER","Quartz - Corian - Quartz - CORIANDER","A",null,"Quartz D",null,"COR","ZCOR","D",null,null,null,"Corian - Seafoam","C","0000000"]
["Quartz","Corian - Quartz","CYGNUS PEARL","Quartz - CYGNUS PEARL","Quartz - Corian - Quartz - CYGNUS PEARL","A",null,"Quartz D",null,"CPE","ZCPE","D",null,null,null,"Corian - Serene Sage","C","0000000"]
["Quartz","Corian - Quartz","DOVE GREY","Quartz - DOVE GREY","Quartz - Corian - Quartz - DOVE GREY","A",null,"Quartz D",null,"DGR","ZDGR","D",null,null,null,"Corian - Silt","B","0000000"]
["Quartz","Corian - Quartz","EVERGREEN ","Quartz - EVERGREEN ","Quartz - Corian - Quartz - EVERGREEN ","A",null,"Quartz D",null,"EVG","ZEVG","D",null,null,null,"Corian - Silver Birch","C","0000000"]
["Quartz","Corian - Quartz","GALAXY BLACK","Quartz - GALAXY BLACK","Quartz - Corian - Quartz - GALAXY BLACK","A",null,"Quartz D",null,"GBL","ZGBL","D",null,null,null,"Corian - Silver Gray","A","0000000"]
["Quartz","Corian - Quartz","GRAPHITE","Quartz - GRAPHITE","Quartz - Corian - Quartz - GRAPHITE","A",null,"Quartz D",null,"GPH","ZGPH","D",null,null,null,"Corian - Silverite","C","0000000"]
["Quartz","Corian - Quartz","GRAVEL","Quartz - GRAVEL","Quartz - Corian - Quartz - GRAVEL","A",null,"Quartz D",null,"GRA","ZGRA","D",null,null,null,"Corian - Smoke Drift Prima","D","0000000"]
["Quartz","Corian - Quartz","GRIGIONE","Quartz - GRIGIONE","Quartz - Corian - Quartz - GRIGIONE","A",null,"Quartz D",null,"GRI","ZGRI","D",null,null,null,"Corian - Sonora","D","0000000"]
["Quartz","Corian - Quartz","IMPERIAL","Quartz - IMPERIAL","Quartz - Corian - Quartz - IMPERIAL","A",null,"Quartz D",null,"IMP","ZIMP","D",null,null,null,"Corian - Sorrel","D","0000000"]
["Quartz","Corian - Quartz","INDIGO SWIRL ","Quartz - INDIGO SWIRL ","Quartz - Corian - Quartz - INDIGO SWIRL ","A",null,"Quartz D",null,"ISW","ZISW","D",null,null,null,"Corian - Sparkling White","C","0000000"]
["Quartz","Corian - Quartz","INDUS RED","Quartz - INDUS RED","Quartz - Corian - Quartz - INDUS RED","A",null,"Quartz D",null,"IRD","ZIRD","D",null,null,null,"Corian - Stardust","D","0000000"]
["Quartz","Corian - Quartz","LONDON SKY","Quartz - LONDON SKY","Quartz - Corian - Quartz - LONDON SKY","A",null,"Quartz D",null,"LON","ZLON","D",null,null,null,"Corian - Suede","C","0000000"]
["Quartz","Corian - Quartz","LUNAR PEARL","Quartz - LUNAR PEARL","Quartz - Corian - Quartz - LUNAR PEARL","A",null,"Quartz D",null,"LPE","ZLPE","D",null,null,null,"Corian - Tumbleweed","D","0000000"]
["Quartz","Corian - Quartz","MARBLE MIST","Quartz - MARBLE MIST","Quartz - Corian - Quartz - MARBLE MIST","A",null,"Quartz D",null,"MST","ZMST","D",null,null,null,"Corian - Vanilla","A","0000000"]
["Quartz","Corian - Quartz","MOCHA LATTE","Quartz - MOCHA LATTE","Quartz - Corian - Quartz - MOCHA LATTE","A",null,"Quartz D",null,"MOL","ZMOL","D",null,null,null,"Corian - Venaro White","C","0000000"]
["Quartz","Corian - Quartz","MOSSY GREEN","Quartz - MOSSY GREEN","Quartz - Corian - Quartz - MOSSY GREEN","A",null,"Quartz D",null,"MSY","ZMSY","D",null,null,null,"Corian - Weathered Concrete","C","0000000"]
["Quartz","Corian - Quartz","MOSSY OAK ","Quartz - MOSSY OAK ","Quartz - Corian - Quartz - MOSSY OAK ","A",null,"Quartz D",null,"MOA","ZMOA","D",null,null,null,"Corian - Whipped Cream","C","0000000"]
["Quartz","Corian - Quartz","MYSTIC BLACK","Quartz - MYSTIC BLACK","Quartz - Corian - Quartz - MYSTIC BLACK","A",null,"Quartz D",null,"MBL","ZMBL","D",null,null,null,"Corian - Whisper","C","0000000"]
["Quartz","Corian - Quartz","NEVE","Quartz - NEVE","Quartz - Corian - Quartz - NEVE","A",null,"Quartz D",null,"NEV","ZNEV","D",null,null,null,"Corian - White Jasmine","C","0000000"]
["Quartz","Corian - Quartz","OATMEAL","Quartz - OATMEAL","Quartz - Corian - Quartz - OATMEAL","A",null,"Quartz D",null,"OAT","ZOAT","D",null,null,null,"Corian - White Onyx","D","0000000"]
["Quartz","Corian - Quartz","OCTAVIO","Quartz - OCTAVIO","Quartz - Corian - Quartz - OCTAVIO","B",null,"Quartz E",null,"OCT","ZOCT","E",null,null,null,"Corian - Willow","C","0000000"]
["Quartz","Corian - Quartz","ONYX CARRARA ","Quartz - ONYX CARRARA ","Quartz - Corian - Quartz - ONYX CARRARA ","A",null,"Quartz D",null,"OCA","ZOCA","D",null,null,null,"Corian - Windswept Prima","D","0000000"]
["Quartz","Corian - Quartz","PAPYRUS","Quartz - PAPYRUS","Quartz - Corian - Quartz - PAPYRUS","A",null,"Quartz D",null,"PAP","ZPAP","D",null,null,null,"Corian - Witch Hazel","D","0000000"]
["Quartz","Corian - Quartz","PORTORO","Quartz - PORTORO","Quartz - Corian - Quartz - PORTORO","B",null,"Quartz E",null,"POR","ZPOR","E",null,null,null,"Silestone - African Red***",{"$error":"#N/A"},"0000000"]
["Quartz","Corian - Quartz","PROVENCE ","Quartz - PROVENCE ","Quartz - Corian - Quartz - PROVENCE ","A",null,"Quartz D",null,"PRO","ZPRO","D",null,null,null,"Silestone - Alpina White***",{"$error":"#N/A"},"0000000"]
["Quartz","Corian - Quartz","SADDLE BROWN","Quartz - SADDLE BROWN","Quartz - Corian - Quartz - SADDLE BROWN","A",null,"Quartz D",null,"SBD","ZSBD","D",null,null,null,"Silestone - Altair Suede","H","0000000"]
["Quartz","Corian - Quartz","SAGE","Quartz - SAGE","Quartz - Corian - Quartz - SAGE","A",null,"Quartz D",null,"SGE","ZSGE","D",null,null,null,"Silestone - Amarillo Palmira***",{"$error":"#N/A"},"0000000"]
["Quartz","Corian - Quartz","SNODRIFT","Quartz - SNODRIFT","Quartz - Corian - Quartz - SNODRIFT","A",null,"Quartz D",null,"SND","ZSND","D",null,null,null,"Silestone - Arezzo***",{"$error":"#N/A"},"0000000"]
["Quartz","Corian - Quartz","SNOW FLURRY","Quartz - SNOW FLURRY","Quartz - Corian - Quartz - SNOW FLURRY","A",null,"Quartz D",null,"SFL","ZSFL","D",null,null,null,"Silestone - Atlantis***",{"$error":"#N/A"},"0000000"]
["Quartz","Corian - Quartz","SNOW WHITE","Quartz - SNOW WHITE","Quartz - Corian - Quartz - SNOW WHITE","A","0108084","Quartz D",null,"SWH","ZSWH","D",null,null,null,"Silestone - Bamboo***",{"$error":"#N/A"},"0000000"]
["Quartz","Corian - Quartz","SPACE BLACK","Quartz - SPACE BLACK","Quartz - Corian - Quartz - SPACE BLACK","A",null,"Quartz D",null,"SBL","ZSBL","D",null,null,null,"Silestone - Bering***",{"$error":"#N/A"},"0000000"]
["Quartz","Corian - Quartz","STORM GREY","Quartz - STORM GREY","Quartz - Corian - Quartz - STORM GREY","A","0108080","Quartz D",null,"SGR","ZSGR","D",null,null,null,"Silestone - Black Anubis***",{"$error":"#N/A"},"0000000"]
["Quartz","Corian - Quartz","STRATUS WHITE","Quartz - STRATUS WHITE","Quartz - Corian - Quartz - STRATUS WHITE","A","0108089","Quartz D",null,"STW","ZSTW","D",null,null,null,"Silestone - Blanco City***",{"$error":"#N/A"},"0000000"]
["Quartz","Corian - Quartz","TOASTED ALMOND","Quartz - TOASTED ALMOND","Quartz - Corian - Quartz - TOASTED ALMOND","A",null,"Quartz D",null,"TAR","ZTAR","D",null,null,null,"Silestone - Blue Enjoy***",{"$error":"#N/A"},"0000000"]
["Quartz","Corian - Quartz","TOFFEE","Quartz - TOFFEE","Quartz - Corian - Quartz - TOFFEE","A",null,"Quartz D",null,"TPF","ZTPF","D",null,null,null,"Silestone - Brazilian Brown***",{"$error":"#N/A"},"0000000"]
["Quartz","Corian - Quartz","VALENTE PEARL","Quartz - VALENTE PEARL","Quartz - Corian - Quartz - VALENTE PEARL","B",null,"Quartz E",null,"VLP","ZVLP","E",null,null,null,"Silestone - Carbono***",{"$error":"#N/A"},"0000000"]
["Quartz","Corian - Quartz","VENETIA CREAM","Quartz - VENETIA CREAM","Quartz - Corian - Quartz - VENETIA CREAM","A",null,"Quartz D",null,"VEN","ZVEN","D",null,null,null,"Silestone - Charcoal Soapstone***",{"$error":"#N/A"},"0000000"]
["Quartz","Corian - Quartz","VERSILIA GRIGIO","Quartz - VERSILIA GRIGIO","Quartz - Corian - Quartz - VERSILIA GRIGIO","B",null,"Quartz E",null,"VER","ZVER","E",null,null,null,"Silestone - Classic White***",{"$error":"#N/A"},"0000000"]
["Quartz","Corian - Quartz","WARM TAUPE","Quartz - WARM TAUPE","Quartz - Corian - Quartz - WARM TAUPE","A",null,"Quartz D",null,"WTP","ZWTP","D",null,null,null,"Silestone - Coral Clay***",{"$error":"#N/A"},"0000000"]
["Quartz","Corian - Quartz","WILD RICE","Quartz - WILD RICE","Quartz - Corian - Quartz - WILD RICE","A",null,"Quartz D",null,"WRI","ZWRI","D",null,null,null,"Silestone - Dreis***",{"$error":"#N/A"},"0000000"]
["Solid Surface","Corian","Raffia","Solid Surface - Raffia","Solid Surface - Corian - Raffia","C","0108012",{"$f":"\"Corian \" & F184","v":"Corian C"},{"$f":"J184","v":"RAF"},"RAF","CRAF","C",null,null,null,"Silestone - Ebony Pearl***",{"$error":"#N/A"},"0000000"]
["Solid Surface","Corian","Rain Cloud","Solid Surface - Rain Cloud","Solid Surface - Corian - Rain Cloud","D","0108036","Corian D","RAC","RAC","CRAC","D",null,null,null,"Silestone - Etnl Calacatta Gold***",{"$error":"#N/A"},"0000000"]
["Solid Surface","Corian","Rice Paper","Solid Surface - Rice Paper","Solid Surface - Corian - Rice Paper","C","0108005","Corian C","RPA","RPA","CRPA","C",null,null,null,"Silestone - Gedatsu***",{"$error":"#N/A"},"0000000"]
["Solid Surface","Corian","Riverbed","Solid Surface - Riverbed","Solid Surface - Corian - Riverbed","D","0108023","Corian D","RVB","RVB","CRVB","D",null,null,null,"Silestone - Helix","E","0000000"]
["Solid Surface","Corian","Rosemary","Solid Surface - Rosemary","Solid Surface - Corian - Rosemary","D","0108041","Corian D","RSM","RSM","CRSM","D",null,null,null,"Silestone - Kalahari***",{"$error":"#N/A"},"0000000"]
["Solid Surface","Corian","Royal Red","Solid Surface - Royal Red","Solid Surface - Corian - Royal Red","C","0108023","Corian C","RVB","RVB","CRVB","C",null,null,null,"Silestone - Kona Beige","C","0000000"]
["Solid Surface","Corian","Saffron","Solid Surface - Saffron","Solid Surface - Corian - Saffron","D",null,"Corian D","SAF","SAF","CSAF","D",null,null,null,"Silestone - Lena","A","0000000"]
["Solid Surface","Corian","Sagebrush","Solid Surface - Sagebrush","Solid Surface - Corian - Sagebrush","D",null,"Corian D","SAB","SAB","CSAB","D",null,null,null,"Silestone - Lena Suede","G","0000000"]
["Solid Surface","Corian","Sahara","Solid Surface - Sahara","Solid Surface - Corian - Sahara","A",null,"Corian A","MSA","MSA","CMSA","A",null,null,null,"Silestone - Magenta Energy***",{"$error":"#N/A"},"0000000"]
["Solid Surface","Corian","Sand","Solid Surface - Sand","Solid Surface - Corian - Sand","B",null,"Corian B","SAN","SAN","CSAN","B",null,null,null,"Silestone - Mahogany***",{"$error":"#N/A"},"0000000"]
["Solid Surface","Corian","Sand Storm",{"$f":"A194& \" - \" & C194","v":"Solid Surface - Sand Storm"},"Solid Surface - Corian - Sand Storm","D","0108052","Corian D","SAS","SAS","CSAS","D",null,null,null,"Silestone - Merope","D",{"$f":"IFERROR(VLOOKUP(P194,E:G,6,0),\"0000000\")","v":"0000000"}]
["Solid Surface","Corian","Sandalwood","Solid Surface - Sandalwood",{"$f":"A195&\" - \"&B195&\" - \"&C195","v":"Solid Surface - Corian - Sandalwood"},"D","0108050","Corian D","SAW","SAW","CSAW","D",null,null,null,"Silestone - Minerva Cream***",{"$error":"#N/A"},"0000000"]
["Solid Surface","Corian","Savannah","Solid Surface - Savannah","Solid Surface - Corian - Savannah","B","0108007","Corian B","MSV","MSV","CMSV","B",null,null,null,"Silestone - Mont Blanc***",{"$error":"#N/A"},"0000000"]
["Solid Surface","Corian","Seafoam","Solid Surface - Seafoam","Solid Surface - Corian - Seafoam","C","0108051","Corian C","SEF","SEF","CSEF","C",null,null,null,"Silestone - Moonstone","E","0000000"]
["Solid Surface","Corian","Serene Sage","Solid Surface - Serene Sage","Solid Surface - Corian - Serene Sage","C",null,"Corian C","SSA","SSA","CSSA","C",null,null,null,"Silestone - Niebla***",{"$error":"#N/A"},"0000000"]
["Solid Surface","Corian","Silt","Solid Surface - Silt","Solid Surface - Corian - Silt","B",null,"Corian B","SIL","SIL","CSIL","B",null,null,null,"Silestone - Olive Green***",{"$error":"#N/A"},"0000000"]
["Solid Surface","Corian","Silver Birch","Solid Surface - Silver Birch","Solid Surface - Corian - Silver Birch","C","0108025","Corian C","SVB","SVB","CSVB","C",null,null,null,"Silestone - Orange Cool***",{"$error":"#N/A"},"0000000"]
["Solid Surface","Corian","Silver Gray","Solid Surface - Silver Gray","Solid Surface - Corian - Silver Gray","A",null,"Corian A","SIG","SIG","CSIG","A",null,null,null,"Silestone - Orange Fuego***",{"$error":"#N/A"},"0000000"]
["Solid Surface","Corian","Silverite","Solid Surface - Silverite","Solid Surface - Corian - Silverite","C",null,"Corian C","SLV","SLV","CSLV","C",null,null,null,"Silestone - Pietra***",{"$error":"#N/A"},"0000000"]
["Solid Surface","Corian","Smoke Drift Prima","Solid Surface - Smoke Drift Prima","Solid Surface - Corian - Smoke Drift Prima","D",null,"Corian D","SPM","SPM","CSPM","D",null,null,null,"Silestone - Polar Cap***",{"$error":"#N/A"},"0000000"]
["Solid Surface","Corian","Sonora","Solid Surface - Sonora","Solid Surface - Corian - Sonora","D",null,"Corian D","SON","SON","CSON","D",null,null,null,"Silestone - Red Pine","D","0000000"]
["Solid Surface","Corian","Sorrel","Solid Surface - Sorrel","Solid Surface - Corian - Sorrel","D","0108019","Corian D","SOR","SOR","CSOR","D",null,null,null,"Silestone - Reef***",{"$error":"#N/A"},"0000000"]
["Solid Surface","Corian","Sparkling White","Solid Surface - Sparkling White","Solid Surface - Corian - Sparkling White","C",null,"Corian C","SKW","SKW","CSKW","C",null,null,null,"Silestone - Royal Reef***",{"$error":"#N/A"},"0000000"]
["Solid Surface","Corian","Stardust","Solid Surface - Stardust","Solid Surface - Corian - Stardust","D","0108057","Corian D","STR","STR","CSTR","D",null,null,null,"Silestone - Sierra Madre***",{"$error":"#N/A"},"0000000"]
["Solid Surface","Corian","Suede","Solid Surface - Suede","Solid Surface - Corian - Suede","C","0108029","Corian C","SUE","SUE","CSUE","C",null,null,null,"Silestone - Steel***",{"$error":"#N/A"},"0000000"]
["Solid Surface","Corian","Tumbleweed","Solid Surface - Tumbleweed","Solid Surface - Corian - Tumbleweed","D",null,"Corian D","TWE","TWE","CTWE","D",null,null,null,"Silestone - Stellar Cream","D","0000000"]
["Solid Surface","Corian","Vanilla","Solid Surface - Vanilla","Solid Surface - Corian - Vanilla","A",null,"Corian A","VAN","VAN","CVAN","A",null,null,null,"Silestone - Tea Leaf***",{"$error":"#N/A"},"0000000"]
["Solid Surface","Corian","Venaro White","Solid Surface - Venaro White","Solid Surface - Corian - Venaro White","C","0108024","Corian C","VWH","VWH","CVWH","C",null,null,null,"Silestone - Terra***",{"$error":"#N/A"},"0000000"]
["Solid Surface","Corian","Weathered Concrete","Solid Surface - Weathered Concrete","Solid Surface - Corian - Weathered Concrete","C",null,"Corian C","WCN","WCN","CWCN","C",null,null,null,"Silestone - Toffee***",{"$error":"#N/A"},"0000000"]
["Solid Surface","Corian","Whipped Cream","Solid Surface - Whipped Cream","Solid Surface - Corian - Whipped Cream","C","0108027","Corian C","WHC","WHC","CWHC","C",null,null,null,"Silestone - Vortium***",{"$error":"#N/A"},"0000000"]
["Solid Surface","Corian","Whisper","Solid Surface - Whisper","Solid Surface - Corian - Whisper","C","0108008","Corian C","WHI","WHI","CWHI","C",null,null,null,"Silestone - White Platinum","F","0000000"]
["Solid Surface","Corian","White Jasmine","Solid Surface - White Jasmine","Solid Surface - Corian - White Jasmine","C",null,"Corian C","WJA","WJA","CWJA","C",null,null,null,"Silestone - White Storm***",{"$error":"#N/A"},"0000000"]
["Solid Surface","Corian","White Onyx","Solid Surface - White Onyx","Solid Surface - Corian - White Onyx","D",null,"Corian D","WOX","WOX","CWOX","D",null,null,null,"Silestone - Zirix***",{"$error":"#N/A"},"0000000"]
["Solid Surface","Corian","Willow","Solid Surface - Willow","Solid Surface - Corian - Willow","C","0108032","Corian C","WIL","WIL","CWIL","C",null,null,null,"Silestone - Zynite***",{"$error":"#N/A"},"0000000"]
["Solid Surface","Corian","Windswept Prima","Solid Surface - Windswept Prima","Solid Surface - Corian - Windswept Prima","D",null,"Corian D","WPM","WPM","CWPM","D",null,null,null,"Zodiaq - Astral Pearl","A","0000000"]
["Solid Surface","Corian","Witch Hazel","Solid Surface - Witch Hazel","Solid Surface - Corian - Witch Hazel","D","0108055","Corian D","WIH","WIH","CWIH","D",null,null,null,"Zodiaq - Blue Carrara","A","0000000"]
["Quartz","Silestone","Alpina White","Quartz - Alpina White","Quartz - Silestone - Alpina White","C",null,"Quartz C",null,"AWH","SAWH","C",null,null,null,"Zodiaq - Coarse Carrara","A","0000000"]
["Quartz","Silestone","Altair","Quartz - Altair","Quartz - Silestone - Altair","B",null,"Quartz B",null,"ALT","SALT","B",null,null,null,"Zodiaq - Coarse Pepper","A","0000000"]
["Quartz","Silestone","Arctic","Quartz - Arctic","Quartz - Silestone - Arctic","E",null,"Quartz E",null,"ARC","SARC","E",null,null,null,"Zodiaq - Concrete Carrara","A","0000000"]
["Quartz","Silestone","Ariel","Quartz - Ariel","Quartz - Silestone - Ariel","C",null,"Quartz C",null,"ARL","SARL","C",null,null,null,"Zodiaq - Graphite","A","0000000"]
["Quartz","Silestone","Bamboo","Quartz - Bamboo","Quartz - Silestone - Bamboo","D",null,"Quartz D",null,"BAM","SBAM","D",null,null,null,"Zodiaq - Grigione","A","0000000"]
["Quartz","Silestone","Blanco City","Quartz - Blanco City","Quartz - Silestone - Blanco City","A",null,"Quartz A",null,"BLC","SBLC","A",null,null,null,"Zodiaq - Lunar Pearl","A","0000000"]
["Quartz","Silestone","Blanco Maple","Quartz - Blanco Maple","Quartz - Silestone - Blanco Maple","C","0108087","Quartz C",null,"BLM","SBLM","C",null,null,null,"Zodiaq - Névé","A","0000000"]
["Quartz","Silestone","Blanco Orion","Quartz - Blanco Orion","Quartz - Silestone - Blanco Orion","D",null,"Quartz D",null,"BLO","SBLO","D",null,null,null,"Zodiaq - Onyx Carrara","A","0000000"]
["Quartz","Silestone","Blue Sahara","Quartz - Blue Sahara","Quartz - Silestone - Blue Sahara","B",null,"Quartz B",null,"BSA","SBSA","B",null,null,null,"Zodiaq - Portoro","B","0000000"]
["Quartz","Silestone","Calacatta Gold","Quartz - Calacatta Gold","Quartz - Silestone - Calacatta Gold","E",null,"Quartz E",null,"CGL","SCGL","E",null,null,null,"Zodiaq - Saddle Brown","A","0000000"]
["Quartz","Silestone","Calypso","Quartz - Calypso","Quartz - Silestone - Calypso","E",null,"Quartz E",null,"CAL","SCAL","E",null,null,null,"Zodiaq - Snow White","A","0000000"]
["Quartz","Silestone","Capri Limestone","Quartz - Capri Limestone","Quartz - Silestone - Capri Limestone","C",null,"Quartz C",null,"CLM","SCLM","C",null,null,null,"Zodiaq - Snowdrift","A","0000000"]
["Quartz","Silestone","Cemento","Quartz - Cemento","Quartz - Silestone - Cemento","B",null,"Quartz B",null,"CEM","SCEM","B",null,null,null,"Zodiaq - Toffee","A","0000000"]
["Quartz","Silestone","Charcoal Soapstone","Quartz - Charcoal Soapstone","Quartz - Silestone - Charcoal Soapstone","D",null,"Quartz D",null,"CHS","SCHS","D",null,null,null,"Zodiaq - Valente Pearl","B","0000000"]
["Quartz","Silestone","Chrome","Quartz - Chrome","Quartz - Silestone - Chrome","E",null,"Quartz E",null,"CHR","SCHR","E",null,null,null,"Silestone - Altair (15)","B","0000000"]
["Quartz","Silestone","Classic White","Quartz - Classic White","Quartz - Silestone - Classic White","C",null,"Quartz C",null,"CLW","SCLW","C",null,null,null,"Silestone - Antique Gold***",{"$error":"#N/A"},"0000000"]
["Quartz","Silestone","Coppermist","Quartz - Coppermist","Quartz - Silestone - Coppermist","D",null,"Quartz D",null,"CMS","SCMS","D",null,null,null,"Silestone - Bianco River***",{"$error":"#N/A"},"0000000"]
["Quartz","Silestone","Coral Clay","Quartz - Coral Clay","Quartz - Silestone - Coral Clay","B",null,"Quartz B",null,"CCL","SCCL","B",null,null,null,"Silestone - Black Canyon***",{"$error":"#N/A"},"0000000"]
["Quartz","Silestone","Cygnus","Quartz - Cygnus","Quartz - Silestone - Cygnus","B",null,"Quartz B",null,"CYG","SCYG","B",null,null,null,"Silestone - Blanco Maple***",{"$error":"#N/A"},"0000000"]
["Quartz","Silestone","Daria","Quartz - Daria","Quartz - Silestone - Daria","E",null,"Quartz E",null,"DAR","SDAR","E",null,null,null,"Silestone - Capri Limestone***",{"$error":"#N/A"},"0000000"]
["Quartz","Silestone","Forest Snow","Quartz - Forest Snow","Quartz - Silestone - Forest Snow","D",null,"Quartz D",null,"FSN","SFSN","D",null,null,null,"Silestone - Caramel Rhine***",{"$error":"#N/A"},"0000000"]
["Quartz","Silestone","Grey Expo","Quartz - Grey Expo","Quartz - Silestone - Grey Expo","A",null,"Quartz A",null,"GEX","SGEX","A",null,null,null,"Silestone - Coral Troya***",{"$error":"#N/A"},"0000000"]
["Quartz","Silestone","Helix","Quartz - Helix","Quartz - Silestone - Helix","E",null,"Quartz E",null,"HLX","SHLX","E",null,null,null,"Silestone - Creamstone","F","0000000"]
["Quartz","Silestone","Iconic Black","Quartz - Iconic Black","Quartz - Silestone - Iconic Black","D",null,"Quartz D",null,"ICB","SICB","D",null,null,null,"Silestone - Crystal Ash***",{"$error":"#N/A"},"0000000"]
["Quartz","Silestone","Iconic White","Quartz - Iconic White","Quartz - Silestone - Iconic White","E",null,"Quartz E",null,"ICW","SICW","E",null,null,null,"Silestone - Crystal Sand***",{"$error":"#N/A"},"0000000"]
["Quartz","Silestone","Iron Bark","Quartz - Iron Bark","Quartz - Silestone - Iron Bark","B",null,"Quartz B",null,"IBR","SIBR","B",null,null,null,"Silestone - Cygnus (15)","B","0000000"]
["Quartz","Silestone","Iron Ore","Quartz - Iron Ore","Quartz - Silestone - Iron Ore","E",null,"Quartz E",null,"IOR","SIOR","E",null,null,null,"Silestone - Dinux***",{"$error":"#N/A"},"0000000"]
["Quartz","Silestone","Kensho","Quartz - Kensho","Quartz - Silestone - Kensho","D",null,"Quartz D",null,"KSH","SKSH","D",null,null,null,"Silestone - Eternal Marquina***",{"$error":"#N/A"},"0000000"]
["Quartz","Silestone","Kimbler Mist","Quartz - Kimbler Mist","Quartz - Silestone - Kimbler Mist","E",null,"Quartz E",null,"KMS","SKMS","E",null,null,null,"Silestone - Forest Snow","D","0000000"]
["Quartz","Silestone","Kona Beige","Quartz - Kona Beige","Quartz - Silestone - Kona Beige","C",null,"Quartz C",null,"KBG","SKBG","C",null,null,null,"Silestone - Giallo Quarry***",{"$error":"#N/A"},"0000000"]
["Quartz","Silestone","Lagoon","Quartz - Lagoon","Quartz - Silestone - Lagoon","D",null,"Quartz D",null,"LAG","SLAG","D",null,null,null,"Silestone - Halley***",{"$error":"#N/A"},"0000000"]
["Quartz","Silestone","Lena","Quartz - Lena","Quartz - Silestone - Lena","A",null,"Quartz A",null,"LEN","SLEN","A",null,null,null,"Silestone - Ink***",{"$error":"#N/A"},"0000000"]
["Quartz","Silestone","Luna","Quartz - Luna","Quartz - Silestone - Luna","E",null,"Quartz E",null,"LUN","SLUN","E",null,null,null,"Silestone - Istmo***",{"$error":"#N/A"},"0000000"]
["Quartz","Silestone","Lusso","Quartz - Lusso","Quartz - Silestone - Lusso","D",null,"Quartz D",null,"LUS","SLUS","D",null,null,null,"Silestone - Ivory Coast***",{"$error":"#N/A"},"0000000"]
["Quartz","Silestone","Lyra","Quartz - Lyra","Quartz - Silestone - Lyra","D",null,"Quartz D",null,"LYR","SLYR","D",null,null,null,"Silestone - Kimbler Mist***",{"$error":"#N/A"},"0000000"]
["Quartz","Silestone","Marengo","Quartz - Marengo","Quartz - Silestone - Marengo","A",null,"Quartz A",null,"MNG","SMNG","A",null,null,null,"Silestone - Luna***",{"$error":"#N/A"},"0000000"]
["Quartz","Silestone","Marquina","Quartz - Marquina","Quartz - Silestone - Marquina","E",null,"Quartz E",null,"MAR","SMAR","E",null,null,null,"Silestone - Lusso","D","0000000"]
["Quartz","Silestone","Minerva Cream","Quartz - Minerva Cream","Quartz - Silestone - Minerva Cream","A",null,"Quartz A",null,"MIN","SMIN","A",null,null,null,"Silestone - Lyra***",{"$error":"#N/A"},"0000000"]
["Quartz","Silestone","Moonstone",{"$f":"A258& \" - \" & C258","v":"Quartz - Moonstone"},"Quartz - Silestone - Moonstone","E",null,"Quartz E",null,"MNS","SMNS","E",null,null,null,"Silestone - Nymbus***",{"$error":"#N/A"},{"$f":"IFERROR(VLOOKUP(P258,E:G,6,0),\"0000000\")","v":"0000000"}]
["Quartz","Silestone","Mountain Mist","Quartz - Mountain Mist",{"$f":"A259&\" - \"&B259&\" - \"&C259","v":"Quartz - Silestone - Mountain Mist"},"C",null,"Quartz C",null,"MMI","SMMI","C",null,null,null,"Silestone - Olivia***",{"$error":"#N/A"},"0000000"]
["Quartz","Silestone","Noka","Quartz - Noka","Quartz - Silestone - Noka","A",null,"Quartz A",null,"NOK","SNOK","A",null,null,null,"Silestone - Phoenix","E","0000000"]
["Quartz","Silestone","Ocean Jasper","Quartz - Ocean Jasper","Quartz - Silestone - Ocean Jasper","E",null,"Quartz E",null,"OJA","SOJA","E",null,null,null,"Silestone - Red Pine Suede","I","0000000"]
["Quartz","Silestone","Ocean Storm","Quartz - Ocean Storm","Quartz - Silestone - Ocean Storm","E",null,"Quartz E",null,"OST","SOST","E",null,null,null,"Silestone - Rosso Monza***",{"$error":"#N/A"},"0000000"]
["Quartz","Silestone","Pearl Jasmine","Quartz - Pearl Jasmine","Quartz - Silestone - Pearl Jasmine","D",null,"Quartz D",null,"PJA","SPJA","D",null,null,null,"Silestone - Royal Cemento***",{"$error":"#N/A"},"0000000"]
["Quartz","Silestone","Phoenix","Quartz - Phoenix","Quartz - Silestone - Phoenix","E",null,"Quartz E",null,"PHO","SPHO","E",null,null,null,"Silestone - Santa Fe Brown***",{"$error":"#N/A"},"0000000"]
["Quartz","Silestone","Pietra","Quartz - Pietra","Quartz - Silestone - Pietra","E",null,"Quartz E",null,"PTR","SPTR","E",null,null,null,"Silestone - Satori***",{"$error":"#N/A"},"0000000"]
["Quartz","Silestone","Quasar","Quartz - Quasar","Quartz - Silestone - Quasar","E",null,"Quartz E",null,"QUA","SQUA","E",null,null,null,"Silestone - Sonora Gold***",{"$error":"#N/A"},"0000000"]
["Quartz","Silestone","Riverbed","Quartz - Riverbed","Quartz - Silestone - Riverbed","E",null,"Quartz E",null,"RVB","SRVB","E",null,null,null,"Silestone - Stellar Fire***",{"$error":"#N/A"},"0000000"]
["Quartz","Silestone","Royal Reef","Quartz - Royal Reef","Quartz - Silestone - Royal Reef","B",null,"Quartz B",null,"RRF","SRRF","B",null,null,null,"Silestone - Stellar Marine***",{"$error":"#N/A"},"0000000"]
["Quartz","Silestone","Seleno","Quartz - Seleno","Quartz - Silestone - Seleno","E",null,"Quartz E",null,"SEL","SSEL","E",null,null,null,"Silestone - Tao***",{"$error":"#N/A"},"0000000"]
["Quartz","Silestone","Serena","Quartz - Serena","Quartz - Silestone - Serena","E",null,"Quartz E",null,"SER","SSER","E",null,null,null,"Silestone - Tritium***",{"$error":"#N/A"},"0000000"]
["Quartz","Silestone","Sienna Ridge","Quartz - Sienna Ridge","Quartz - Silestone - Sienna Ridge","C",null,"Quartz C",null,"SRD","SSRD","C",null,null,null,"Silestone - Unsui***",{"$error":"#N/A"},"0000000"]
["Quartz","Silestone","Sierra Madre","Quartz - Sierra Madre","Quartz - Silestone - Sierra Madre","C",null,"Quartz C",null,"SMD","SSMD","C",null,null,null,"Silestone - Yellow Dream***",{"$error":"#N/A"},"0000000"]
["Quartz","Silestone","Statuario","Quartz - Statuario","Quartz - Silestone - Statuario","E",null,"Quartz E",null,"STA","SSTA","E",null,null,null,"Silestone - Yukon Blanco","D","0000000"]
["Quartz","Silestone","Stellar Night","Quartz - Stellar Night","Quartz - Silestone - Stellar Night","D",null,"Quartz D",null,"SNT","SSNT","D",null,null,null,"Zodiaq - Caraway","A","0000000"]
["Quartz","Silestone","Stellar Snow","Quartz - Stellar Snow","Quartz - Silestone - Stellar Snow","D",null,"Quartz D",null,"SSN","SSSN","D",null,null,null,"Zodiaq - Cashmere Carrara","A","0000000"]
["Quartz","Silestone","Tebas Black","Quartz - Tebas Black","Quartz - Silestone - Tebas Black","A",null,"Quartz A",null,"TBL","STBL","A",null,null,null,"Zodiaq - Cloud White","A","0000000"]
["Quartz","Silestone","Tigris Sand","Quartz - Tigris Sand","Quartz - Silestone - Tigris Sand","D",null,"Quartz D",null,"TSN","STSN","D",null,null,null,"Zodiaq - Coarse Botticino","A","0000000"]
["Quartz","Silestone","Unsui","Quartz - Unsui","Quartz - Silestone - Unsui","D",null,"Quartz D",null,"UNS","SUNS","D",null,null,null,"Zodiaq - Coriander","A","0000000"]
["Quartz","Silestone","Vortium","Quartz - Vortium","Quartz - Silestone - Vortium","E",null,"Quartz E",null,"VOR","SVOR","E",null,null,null,"Zodiaq - Dove Grey","A","0000000"]
["Quartz","Silestone","White Diamond","Quartz - White Diamond","Quartz - Silestone - White Diamond","E",null,"Quartz E",null,"WDI","SWDI","E",null,null,null,"Zodiaq - Imperial","A","0000000"]
["Quartz","Silestone","White North","Quartz - White North","Quartz - Silestone - White North","B",null,"Quartz B",null,"SWN","SWN","B",null,null,null,"Zodiaq - Indigo Swirl","A","0000000"]
["Quartz","Silestone","White Platinum","Quartz - White Platinum","Quartz - Silestone - White Platinum","E",null,"Quartz E",null,"WPL","SWPL","E",null,null,null,"Zodiaq - Mocha Latte","A","0000000"]
["Quartz","Silestone","White Storm","Quartz - White Storm","Quartz - Silestone - White Storm","B","0108096","Quartz B",null,"WST","SWST","B",null,null,null,"Zodiaq - Mossy Green","A","0000000"]
["Quartz","Silestone","White Zeus Extreme","Quartz - White Zeus Extreme","Quartz - Silestone - White Zeus Extreme","D",null,"Quartz D",null,"WZX","SWZX","D",null,null,null,"Zodiaq - Mossy Oak","A","0000000"]
["Quartz","Silestone","Yukon Blanco","Quartz - Yukon Blanco","Quartz - Silestone - Yukon Blanco","D",null,"Quartz D",null,"YBL","SYBL","D",null,null,null,"Zodiaq - Oatmeal","A","0000000"]
["Quartz","Silestone","Zirconium","Quartz - Zirconium","Quartz - Silestone - Zirconium","E",null,"Quartz E",null,"ZIR","SZIR","E",null,null,null,"Zodiaq - Space Black","A","0000000"]
[null,null,null,null,null,null,null,null,null,null,null,null,null,null,null,"Zodiaq - Venetia Cream","A","0000000"]
[null,null,null,null,null,null,null,null,null,null,null,null,null,null,null,"Zodiaq - Versilia Grigio","B","0000000"]